{"text_format":"1","workbook":"xlsx","n_sheets":4,"sheets":["Help","DSCoA","Print","Working"],"not_rendered":{"charts":0,"images":10,"macros":1,"external_links":0,"defined_names":47,"comments":1,"pivot_tables":0},"unopened":[],"bounds":{"document_bytes":16777216,"sheet_cells":100000,"rows_first":2000,"rows_last":500,"rows_between":2000,"halvings":0,"cell_chars":16384,"cell_head_chars":4096},"cells_cut":0,"cells_raw":0,"read":"whole","date_system":"1900"}

{"sheet":"Help","index":0,"n_rows":34,"n_cols":9,"rows_kept":34,"cut":false,"hidden":false,"merged":[[33,4,37,16],[21,4,22,16],[24,8,30,16],[13,4,14,16],[8,4,8,16],[10,4,10,16],[11,4,11,16],[16,4,19,16]]}
[null,{"$f":"DSCoA!A1","v":"Dairy Standard Chart of Accounts"}]
[null,{"$f":"DSCoA!A2","v":"Version 8 July 2025"}]
[]
[]
[]
[]
[]
[null,"DSCoA sheet functions"]
[null,null,null,null,"The S and R buttons save and restore the DSCoA sheets layout into 1 of 3 'memories'. A typical example would be to arrange the column widths and rows to print a copy of the sheet suitable for a report. Once the layout is finalised press the S1 button to save it in memory 1. Pressing the Rd button will restore the default layout. After further data entry, when you next wish to print the DSCoA sheet press the R1 button to recall layout 1."]
[]
[null,null,null,null,"The Goto drop down menu provides a fast way to jump to another section of the DSCoA sheet. "]
[null,null,null,null,"The L and U buttons lock and unlock the sheets. It is recommended you keep the sheets locked so changes are not inadvertently made to the cell contents."]
[]
[null,null,null,null,"The +/- button toggles the visiblity of the subgroup controls down the left of the sheet. This allows you to customise the visibility of individual sections (see below).\nThe H button toggles the visibility of the coloumn and row headers."]
[]
[]
[null,null,null,null,"The detail of the entire DSCoA sheet can be decreased and increased by hiding and showing subsections of the sheet. The 'Level 2' button shows the main sections and subsection headings and the 'Level 3' button displays all three levels of detail. When a level 3 account is hidden it is de-selected. If a level 3 account is made visible it is selected if the parent account is selected, otherwise it is un-selected."]
[]
[]
[]
[]
[null,null,null,null,"The L2 and L3 buttons work in the same manner as the Level buttons but only adjust the visibilty of that section of the DSCoA sheet."]
[]
[]
[null,null,null,null,null,null,null,null,"The level of detail within a section can also be adjusted individually using the group controls in the left margin of the DSCoA sheet. In the figure to the left the full detail of the Herd Costs section is visible. By clicking on the left most squares with a - in them each of the three subsections, AI & Herd Test, Animal Health and/or Calf Rearing can be contracted back. If only the section heading is needed the left most group control can be clicked to hide all the detail for the Herd Costs section."]
[]
[]
[]
[]
[]
[]
[]
[]
[null,null,null,null,"The 'Export' button creates a file suitable for importing into an online accounting package to transfer the selected accounts.\nOnly accounts that have a ticked checkbox will be exported.\nThe 'All' button at the top of each section ticks all the accounts in that section.\nNote: The export function is only available on Microsoft Windows computers."]

{"sheet":"DSCoA","index":1,"n_rows":246,"n_cols":11,"rows_kept":246,"cut":false,"hidden":false,"merged":[]}
["Dairy Standard Chart of Accounts"]
[{"$f":"getversion()","v":"Version 8 July 2025"}]
[null,null,null,null,null,"Key Physical","Include",null,null,"Checkbox","Checkbox"]
[null,null,null,null,"GST","Number","in export","Description",null,"Heirarchy","Flat"]
["1.0","Income",null,null,"D",null,null,"All income associated with dairy farming activities",null,true,{"$f":"IF(OR(J6,J7,J11,J15,J18),FALSE,J5)","v":false}]
[null,1.1000000000000001,"Milk Income",null,"Y","Quantity",null,"Gross Milk Income – i.e butterfat and protein income, step-ups, retrospective payments and colostrums sales. Record other items on factory milk statement in appropriate income or expense categories or sub-categories not here under milk income",null,true,{"$f":"J6","v":true}]
[null,1.2,"Livestock Sales",null,"Y","Number",null,"Sales of stock from normal herd management practices, not from one-off sales such as major reductions as these are considered as CAPITAL INCOME sub SALES-BREEDERS.",null,true,{"$f":"IF(OR(J8:J10),FALSE,J7)","v":false}]
[null,null,"1.2.1","Calf sales","Y","Number",null,"Bull calves, beef cross calves, heifer calves not kept for herd replacements",null,true,{"$f":"J8","v":true}]
[null,null,"1.2.2","Cull sales","Y","Number",null,"Culled stock, chopper cows, heifers, bulls etc. culled and sold for slaughter",null,true,{"$f":"J9","v":true}]
[null,null,"1.2.3","Other livestock sales","Y","Number",null,"Beef cattle, horses, bulls, breeding stock e.g. bulls, cows, heifers if they are regularly sold to others for use for breeding, milking, sires not stock from a major reduction sale or dispersal sale as these sales would be under CAPITAL INCOME",null,true,{"$f":"J10","v":true}]
[null,1.3,"Feed Sales",null,"Y","Quantity",null,"Sales of feed produced within the dairy business",null,true,{"$f":"IF(OR(J12:J14),FALSE,J11)","v":false}]
[null,null,"1.3.1","Hay sales","Y","Quantity",null,"Income from hay sales",null,true,{"$f":"J12","v":true}]
[null,null,"1.3.2","Silage sales","Y","Quantity",null,"Income from silage sales",null,true,true]
[null,null,"1.3.3","Other feed sales","Y","Quantity",null,"Income from other feed sales such as grain",null,true,true]
[null,1.4,"Water Sales",null,"Y","ML",null,"Sales of water from normal water management practices, not from one-off sales such as major reductions as these are considered as CAPITAL INCOME",null,true,{"$f":"IF(OR(J16:J17),FALSE,J15)","v":false}]
[null,null,"1.4.1","Temporary water sales","Y","ML",null,"Sales of temporary water",null,true,{"$f":"J16","v":true}]
[null,null,"1.4.3","Other water sales","Y","ML",null,"Income from any other water sales",null,true,true]
[null,1.5,"Other Farm Income",null,null,null,null,"Various sources of farm income resulting from farm operations",null,true,{"$f":"IF(OR(J19:J29),FALSE,J18)","v":false}]
[null,null,"1.5.1","Interest income","N",null,null,"Interest received on farm operating bank accounts and short term deposits with bank accounts or factories and any other interest money received because of the operation of the farm business, not interest on off-farm or non-farm investments and personal bank account interest as these go in NON FARM INCOME",null,true,true]
[null,null,"1.5.2","Contracting income","Y",null,null,"Income earned off-farm using the business farm machinery, equipment e.g. hay mower, hay roller, hay/silage processing",null,true,true]
[null,null,"1.5.3","Milk company dividends","D",null,null,"Factory, co-op dividends, not dividends from off farm or non-farm investments",null,true,true]
[null,null,"1.5.4","Incentives","N",null,null,"Trade incentives, discounts on purchases, vat purchase incentives",null,true,true]
[null,null,"1.5.5","Lease income","Y",null,null,"Cows, farming land, machinery etc. that is leased out to others",null,true,true]
[null,null,"1.5.6","Rebates - fuel","D",null,null,"Fuel rebates",null,true,true]
[null,null,"1.5.7","Rebates - fertiliser","D",null,null,"Fertiliser Rebates",null,true,true]
[null,null,"1.5.8","Rebates  - other","D",null,null,"Other rebates, including semen, factory or volume charge rebates",null,true,true]
[null,null,"1.5.9","Government payments","N",null,null,"Government payments in the form of subsidies and support payments",null,true,true]
[null,null,"1.5.10","Insurance recoveries","D",null,null,"Farm insurance recoveries",null,true,true]
[null,null,"1.5.11","Other farm income","D",null,null,"Any other farm income resulting from farm operations such as farm house rental",null,true,true]
[]
["2.0","Herd Costs",null,null,"Y",null,null,"All expenses relating to maintaining herd quality and assisting herd management",null,true,{"$f":"IF(OR(J32,J36,J39,J44),FALSE,J31)","v":false}]
[null,2.1,"AI & Herd Test ",null,"Y",null,null,"All artificial insemination and herd test expenses",null,true,{"$f":"IF(OR(J33:J35),FALSE,J32)","v":false}]
[null,null,"2.1.1","AI/Semen","Y",null,null,"Artificial insemination technician, semen, embryo, ET drugs, gloves, nitrogen for semen tank, vet services, fees and drugs associated with ET work, CIDR, PG and induction",null,true,{"$f":"J33","v":true}]
[null,null,"2.1.2","Herd test","Y",null,null,"Herd test charges",null,true,true]
[null,null,"2.1.3","Other breeding costs","Y",null,null,"Tags for calves, heifers and cow identification, freeze branding of all classes of stock",null,true,true]
[null,2.2000000000000002,"Animal Health",null,"Y",null,null,"All animal health expenses including drugs and veterinary fees but excluding any AI expenses",null,true,{"$f":"IF(OR(J37:J38),FALSE,J36)","v":false}]
[null,null,"2.2.1","Drugs","Y",null,null,"Drench, drench guns, lice and parasite treatment and prevention – minerals and vitamins injected to all classes of stock – vaccines, injections (usually preventative) drugs and other treatments not restricted to purchase from vets including teat dip",null,true,{"$f":"J37","v":true}]
[null,null,"2.2.2","Veterinary fees","Y",null,null,"Vet visits, operations, drugs restricted to purchase from a veterinary surgeon or requiring veterinary sanction",null,true,true]
[null,2.2999999999999998,"Calf Rearing",null,"Y",null,null,"Any expenses incurred for feeding, treating and maintaining calves up to the time they are weaned",null,true,{"$f":"IF(OR(J40:J43),FALSE,J39)","v":false}]
[null,null,"2.3.1","Calf feed","Y",null,null,"Grain, pellets and growth promotants, for calves up to the time they are weaned",null,true,{"$f":"J40","v":true}]
[null,null,"2.3.2","Milk powder","Y",null,null,"Milk powder and milk additives for calves up to the time they are weaned",null,true,true]
[null,null,"2.3.3","Bedding","Y",null,null,"Rice hulls or other bedding material",null,true,true]
[null,null,"2.3.4","Other calf rearing costs","Y",null,null,"Drenching and other calf shed treatments for calves up to the time they are weaned",null,true,true]
[null,2.4,"Other Herd Costs",null,"Y",null,null,"Short term lease of cows, heifers and bulls for periods of less than 12 months as these have a different tax implication to leases in excess of 12 months.  Registrations, transfers, classifications, photos, show entry fees",null,true,{"$f":"J44","v":true}]
[]
["3.0","Shed Costs",null,null,"Y",null,null,"All expenses relating to milk harvesting",null,true,{"$f":"IF(OR(J47,J48,J51),FALSE,J46)","v":false}]
[null,3.1,"Shed Power",null,"Y",null,null,"Electricity, gas fuel for heating, cooling lighting milking",null,true,{"$f":"J47","v":true}]
[null,3.2,"Dairy Supplies",null,"Y",null,null,"Chemicals, detergents used for washing, sterilising, cleaning, fly control. Inflations, rubber tubes, filter socks, strainers, vacuum pump oil, isolated purchases of cups, claws and bowls etc.",null,true,{"$f":"IF(OR(J49:J50),FALSE,J48)","v":false}]
[null,null,"3.2.1","Dairy consumables","Y",null,null,"Chemicals, detergents used for washing, sterilising, cleaning, fly control. Filter socks, strainers, vacuum pump oil, isolated purchases of cups, claws and bowls etc.",null,true,{"$f":"J49","v":true}]
[null,null,"3.2.2","Rubberware","Y",null,null,"Inflations, rubber tubes",null,true,true]
[null,3.3,"Other Shed Costs",null,"Y",null,null,null,null,true,{"$f":"J51","v":true}]
[]
["4.0"," Home Grown Feed Costs",null,null,null,null,null,"All costs associated with growing feed on land under control of the business",null,true,{"$f":"IF(OR(J54,J61,J67,J72,J76,J112),FALSE,J53)","v":false}]
[null,4.0999999999999996,"Fertiliser",null,"Y","Quantity",null,"All NPKS and trace element fertiliser products and compounds including blending, mixing, cartage, bin hire and spreading",null,true,{"$f":"IF(OR(J55:J60),FALSE,J54)","v":false}]
[null,null,"4.1.1","PKS","Y","Quantity",null,"All PKS and trace element fertiliser products and compounds including blending, mixing, cartage, bin hire and spreading",null,true,{"$f":"J55","v":true}]
[null,null,"4.1.2","Urea","Y","Quantity",null,"All urea including cartage, bin hire and spreading",null,true,true]
[null,null,"4.1.3","Nitrogen blends","Y","Quantity",null,"All nitrogen blends including blending, mixing, cartage, bin hire and spreading",null,true,true]
[null,null,"4.1.4","Lime & gypsum","Y","Quantity",null,"Lime & Gypsum including blending, mixing, cartage, bin hire and spreading",null,true,true]
[null,null,"4.1.5","Effluent spreading/disposal","Y",null,null,"Costs associated with spreading effluent ",null,true,true]
[null,null,"4.1.6","Other fertiliser costs","Y",null,null,"Other fertiliser products",null,true,true]
[null,4.2,"Irrigation",null,"D",null,null,"All costs associated with irrigation in the dairy business but not new structures used in new land forming and pasture establishment as these major expenses should be entered into CAPITAL EXPENSES. Maintenance of Irrigation structures and physical channel cleaning should be entered in OVERHEADS sub REPAIRS & MAINTENANCE sub IRRIGATION",null,true,{"$f":"IF(OR(J62:J66),FALSE,J61)","v":false}]
[null,null,"4.2.1","Water authority rates","N",null,null,"Water rates for supply and drainage relating to farm irrigation water",null,true,{"$f":"J62","v":true}]
[null,null,"4.2.2","TWE purchases","D",null,null,"Purchase of temporary water transfers in addition to water right or allocation",null,true,true]
[null,null,"4.2.3","Pumping costs  - electricity","Y",null,null,"Electricity costs for pumping irrigation water",null,true,true]
[null,null,"4.2.4","Pumping costs  - diesel","Y",null,null,"Diesel costs for pumping irrigation water",null,true,true]
[null,null,"4.2.5","Other irrigation costs","Y",null,null,"Any other costs incurred to run the irrigation excluding repairs and maintenance",null,true,true]
[null,4.3,"Hay & Silage Making",null,"Y",null,null,"Costs for on-farm hay and silage making, including twine, plastic wrap and contractors",null,true,{"$f":"IF(OR(J68:J71),FALSE,J67)","v":false}]
[null,null,"4.3.1","Hay making","Y",null,null,"Cutting, twine, net wrap, pressing, baling, hay inoculants, cartage on hay and freight on twine etc.",null,true,{"$f":"J68","v":true}]
[null,null,"4.3.2","Silage making","Y",null,null,"Harvesting, transport, plastic wrap, pressing, baling, wrapping, chopping, covering, compacting contractors for silage, silage inoculants, cartage of silage purchases and freight on plastic covering etc",null,true,true]
[null,null,"4.3.3","Crop harvesting","Y",null,null,"Harvesting and storage of crops including crop purchases and cartage and freight etc",null,true,true]
[null,null,"4.3.4","Other hay & silage making costs","Y",null,null,"Any other costs incurred in making hay and silage on farm",null,true,true]
[null,4.4000000000000004,"Pasture & Cropping",null,"Y",null,null,"Costs associated with pasture renovation and cropping such as seed, weed & pest and contractor costs. Not new land forming and the associated new pasture establishment as these major expenses should be entered  under CAPITAL EXPENSE sub DEVELOPMENT",null,true,{"$f":"IF(OR(J73:J75),FALSE,J72)","v":false}]
[null,null,"4.4.1","Seed","Y",null,null,"Seed purchases",null,true,{"$f":"J73","v":true}]
[null,null,"4.4.2","Weed & pest control","Y",null,null,"Chemicals and contractors for the control of weeds and pests in pastures, roadsides and channels.  Chemicals, baits, ammunition, contractors used to control vermin",null,true,true]
[null,null,"4.4.3","Other pasture & cropping costs","Y",null,null,"Ploughing, ripping, discing, power harrowing, seedbed preparation, seed for crop and pasture sowing and pasture renovation, direct drilling contractor, oversowing and planting",null,true,true]
[null,4.5,"Fuel & Oil",null,"Y",null,null,"Fuel used for vehicles, equipment, motors used for feed production ",null,true,{"$f":"IF(OR(J77:J80),FALSE,J76)","v":false}]
[null,null,"4.5.1","Diesel","Y","Litres",null,"Diesel costs except those for irrigation",null,true,{"$f":"J77","v":true}]
[null,null,"4.5.2","Unleaded","Y",null,null,"Unleaded petrol",null,true,true]
[null,null,"4.5.3","Gas","Y",null,null,"Gas",null,true,true]
[null,null,"4.5.4","Oil/Grease","Y",null,null,"Oil, grease",null,true,true]
[]
["5.0"," Purchased Feed Costs",null,null,"Y",null,null,"All purchased feeds including cartage, feed additives and agistment",null,true,{"$f":"IF(OR(J83,J90,J97,J102,J107),FALSE,J82)","v":false}]
[null,5.0999999999999996,"Concentrates",null,"Y","Quantity",null,"Purchased concentrates (pellets, grain mixes etc)",null,true,{"$f":"IF(OR(J84:J89),FALSE,J83)","v":false}]
[null,null,"5.1.1","Concentrate 1","Y","Quantity",null,"Grain, grain mixes and pellets",null,true,{"$f":"J84","v":true}]
[null,null,"5.1.2","Concentrate 2","Y","Quantity",null,"Legumes and protein meals",null,true,true]
[null,null,"5.1.3","Concentrate 3","Y","Quantity",null,null,null,true,true]
[null,null,"5.1.4","Concentrate 4","Y","Quantity",null,null,null,true,true]
[null,null,"5.1.5","Concentrate 5","Y","Quantity",null,null,null,true,true]
[null,null,"5.1.6","Concentrate 6","Y","Quantity",null,null,null,true,true]
[null,5.2,"Purchased Fodder",null,"Y","Quantity",null,"Purchased fodder costs inluding hay and silage",null,true,{"$f":"IF(OR(J91:J96),FALSE,J90)","v":false}]
[null,null,"5.2.1","Purchased fodder 1","Y","Quantity",null,"Hay purchases",null,true,{"$f":"J91","v":true}]
[null,null,"5.2.2","Purchased fodder 2","Y","Quantity",null,"Silage purchases",null,true,true]
[null,null,"5.2.3","Purchased fodder 3","Y","Quantity",null,"Haylage purchases",null,true,true]
[null,null,"5.2.4","Purchased fodder 4","Y","Quantity",null,null,null,true,true]
[null,null,"5.2.5","Purchased fodder 5","Y","Quantity",null,null,null,true,true]
[null,null,"5.2.6","Purchased fodder 6","Y","Quantity",null,null,null,true,true]
[null,5.3,"ByProducts",null,"Y","Quantity",null,"Purchased byproducts",null,true,{"$f":"IF(OR(J98:J101),FALSE,J97)","v":false}]
[null,null,"5.3.1","Byproduct 1","Y","Quantity",null,"Brewers grain",null,true,{"$f":"J98","v":true}]
[null,null,"5.3.2","Byproduct 2","Y","Quantity",null,"Citrus pulp",null,true,true]
[null,null,"5.3.3","Byproduct 3","Y","Quantity",null,"Other byproduct",null,true,true]
[null,null,"5.3.4","Byproduct 4","Y","Quantity",null,null,null,true,true]
[null,5.4,"Other Purchased Feeds",null,"Y",null,null,"Any other purchased feed costs",null,true,{"$f":"IF(OR(J103:J106),FALSE,J102)","v":false}]
[null,null,"5.4.1","Other purchased feed 1","Y",null,null,"Additives",null,true,{"$f":"J103","v":true}]
[null,null,"5.4.2","Other purchased feed 2","Y",null,null,null,null,true,true]
[null,null,"5.4.3","Other purchased feed 3","Y",null,null,null,null,true,true]
[null,null,"5.4.4","Other purchased feed 4","Y",null,null,null,null,true,true]
[null,5.5,"Agistment",null,"Y","Number",null,"Agistment and short term land leases (less than 12 months), contract rearing of all classes of stock after weaning, cartage to and from agistment",null,true,{"$f":"IF(OR(J108:J111),FALSE,J107)","v":false}]
[null,null,"5.5.1","Milker agistment","Y","Number",null,"Agistment or the purchase of standing feed grazed by the milking herd including cartage to and from the agistment should all be entered in this category",null,true,{"$f":"J108","v":true}]
[null,null,"5.5.2","Dry cow agistment","Y","Number",null,"Agistment or the purchase of standing feed grazed by dry cows including cartage to and from the agistment should all be entered in this category",null,true,true]
[null,null,"5.5.3","Replacement agistment","Y","Number",null,"Agistment, contract rearing, contract growing, weight gain agistment  or the purchase of standing feed grazed by the replacements including cartage to and from the agistment should all be entered in this category",null,true,true]
[null,null,"5.5.4","Other agistment","Y","Number",null,"Agistment, contract rearing, contract growing, weight gain agistment  or the purchase of standing feed grazed by the other livestock including cartage to and from the agistment should all be entered in this category",null,true,true]
[null,"5.6","Other Feed Costs",null,"Y",null,null,"Includes any other feed costs that have not been included elsewhere here. These may include the cost of washing out or altering grain contracts and cartage costs not already accounted for",null,true,{"$f":"J112","v":true}]
[]
["6.0","Employed Labour Cost",null,null,"D",null,null,"Permanent labour and casual labour. Note: Contractors and contracting should be entered under the category that relates to the work carried out",null,true,{"$f":"IF(OR(J115:J122),FALSE,J114)","v":false}]
[null,6.1,"Wages",null,"N",null,null,"Permanent farm employees either full-time or part-time and casual farm employees",null,true,{"$f":"J115","v":true}]
[null,6.2,"Sharefarmer",null,"D",null,null,"Share paid to sharefarmer",null,true,true]
[null,6.3,"Contract Labour/Relief Milker",null,"D",null,null,"Payments to contract or relief milkers",null,true,true]
[null,6.4,"Protective Clothing ",null,"Y",null,null,"Apron, gloves, gum boots, waterproof clothes etc",null,true,true]
[null,6.5,"Staff Amenitities",null,"Y",null,null,"Includes things like tea and coffee and light meals provided to staff",null,true,true]
[null,6.6,"Training & Development",null,"D",null,null,"Fees for courses, seminars, workshops etc. that relate to the farm business (including travel, meals, accommodation, materials) for permanent and casual employees",null,true,true]
[null,6.7,"Superannuation",null,"N",null,null,"Superannuation contributions for permanent and casual employees",null,true,true]
[null,6.8,"Workcover",null,"Y",null,null,"Workcover for permanent and casual employees",null,true,true]
["7.0","Repairs & Maintenance",null,null,"Y",null,null,"Repairs and maintenance on farm improvements and plant and equipment this does not include capital improvements which should be entered under CAPITAL EXPENSES",null,true,{"$f":"IF(OR(J124:J131),FALSE,J123)","v":false}]
[null,7.1,"Repairs & Maintenance Buildings",null,"Y",null,null,"Maintenance of farm buildings and structures.  The fixtures that would be considered to be part of the farm when/if it is sold",null,true,{"$f":"J124","v":true}]
[null,7.2,"Repairs & Maintenance Fencing",null,"Y",null,null,"Fencing contractors, yards, gates, insulators, gate tapes, fence reels, posts, wire, yard mesh, hinges, gate chains etc",null,true,true]
[null,7.3,"Repairs & Maintenance Houses",null,"Y",null,null,"Repairs to farm houses",null,true,true]
[null,7.4,"Repairs & Maintenance Irrigation",null,"Y",null,null,"Maintenance of irrigation structures and channel cleaning. Note:Structures used in new landforming and pasture establishment should be entered under CAPITAL EXPENSE sub DEVELOPMENT.  ",null,true,true]
[null,7.5,"Repairs & Maintenance Dairy",null,"Y",null,null,"Vat repair, platform repair, sludge pump repair",null,true,true]
[null,7.6,"Repairs & Maintenance Plant & Equipment",null,"Y",null,null,"Repairs and maintenance to farm equipment, plant and  machinery ",null,true,true]
[null,7.7,"Repairs & Maintenance Water Supply",null,"Y",null,null,"Repairs and maintenance of water troughs, poly pipe, pipe and trough fittings, pressure pumps for stock water supply",null,true,true]
[null,7.8,"Repairs & Maintenance Tracks and Laneways",null,"Y",null,null,"Repairs and maintenance to tracks and laneways",null,true,true]
[null,7.9,"Repairs & Maintenance Replacement Tools",null,"Y",null,null,"Replacement tool purchases",null,true,true]
["8.0","Other Overheads",null,null,"D",null,null,"Other Overheads Incurred to run the farm business",null,true,{"$f":"IF(OR(J134,J153,J158),FALSE,J133)","v":false}]
[null,8.1,"Administration",null,"D",null,null,"Administration expenses related to the operation of the farm business including items such as accounting, consulting, phone and office expenses",null,true,{"$f":"IF(OR(J135:J148),FALSE,J134)","v":false}]
[null,null,"8.1.1","Accounting fees","Y",null,null,"Professionals used for accounting advice in relation to the farm business",null,true,{"$f":"J135","v":true}]
[null,null,"8.1.2","Advertising","Y",null,null,"Advertisting expenses relating to sale of milk, livestock, feed or capital items",null,true,true]
[null,null,"8.1.3","Bank fees","N",null,null,"Bank generated charges, account keeping fees, reference fee, stop cheque fee",null,true,true]
[null,null,"8.1.4","Borrowing costs","N",null,null,"Costs related to borrowing funds for farm use – Fees to establish farm related loans",null,true,true]
[null,null,"8.1.5","Computer expenses","Y",null,null,"Computer expenses, including anti-virus software",null,true,true]
[null,null,"8.1.6","Consultants","Y",null,null,"Professionals used for financial,business management and production advice in relation to the farm business",null,true,true]
[null,null,"8.1.7","Donations","N",null,null,"Donations",null,true,true]
[null,null,"8.1.8","Filing fees","N",null,null,"Filing fees, including those paid to ASIC",null,true,true]
[null,null,"8.1.9","Internet costs","Y",null,null,"Email and internet",null,true,true]
[null,null,"8.1.10","Legal fees","Y",null,null,"Legal fees in relation to the farm business",null,true,true]
[null,null,"8.1.11","Light & power","Y",null,null,"Light and power for the house and office",null,true,true]
[null,null,"8.1.12","Printing, postage & stationery ","Y",null,null,"Stationery, postage, printing, stamps, postal charges, post office box rental, envelopes, paper supplies, pens, pencils etc. for use in farm office",null,true,true]
[null,null,"8.1.13","Subscriptions & journals","Y",null,null,"Farm journals, rural newspapers and magazines etc",null,true,true]
[null,null,"8.1.14","Telephone","Y",null,null,"Office, home and mobile phones",null,true,true]
[null,null,"8.1.15","Travel & accomodation","Y",null,null,"Travel and accommodation expenses incurred for the farm business",null,true,true]
[null,8.1999999999999993,"Milk Selling Expenses",null,"D",null,null,"Milk Selling Expenses",null,true,{"$f":"IF(OR(J151:J154),FALSE,J150)","v":false}]
[null,null,"8.2.1","Milk levies","N",null,null,"DA levies",null,true,{"$f":"J151","v":true}]
[null,null,"8.2.2","Milk volume charge","Y",null,null,"Volume charges, stop charges, collection charges",null,true,true]
[null,8.3000000000000007,"Motor Vehicle Expenses",null,"D",null,null,"Motor vehicle expenses",null,true,{"$f":"IF(OR(J154:J157),FALSE,J153)","v":false}]
[null,null,"8.3.1","Motor vehicle fuel & oil","D",null,null,"Fuel and oil not directly related to the conservation or feeding of feed",null,true,{"$f":"J154","v":true}]
[null,null,"8.3.2","Motor vehicle R&M servicing","D",null,null,"Repairs and maintenance on vehicles",null,true,true]
[null,null,"8.3.3","Motor vehicle registrations","D",null,null,"Registrations on farm vehicles",null,true,true]
[null,null,"8.3.4","Motor vehicle insurance","D",null,null,"Vehicle insurance",null,true,true]
[null,8.4,"Miscellaneous Overheads",null,"D",null,null,"Miscellaneous Overheads including items such as general freight, industry levies, livestock selling expenses and farm insurance",null,true,{"$f":"IF(OR(J159:J167),FALSE,J158)","v":false}]
[null,null,"8.4.1","Cleaning & waste disposal","Y",null,null,"Charges relating to rubbish removal and pickup",null,true,{"$f":"J159","v":true}]
[null,null,"8.4.2","Dog keep","Y",null,null,"Food, drugs, veterinary attention, collars, chains for working dogs.",null,true,true]
[null,null,"8.4.3","Farm insurance","Y",null,null,"Farm insurance package including stock, plant, fodder, buildings, sickness, accident and trauma insurance.  Portion of house insurance as determined by your accountant",null,true,true]
[null,null,"8.4.4","General expenses (misc.)","D",null,null,"General farm expenses that do not fit within another expense code",null,true,true]
[null,null,"8.4.5","General freight & cartage","Y",null,null,"General freight & cartage not including to and from agistment which should be entered under agistment",null,true,true]
[null,null,"8.4.6","Hire of plant & equip","Y",null,null,"Hire of plant and equipment",null,true,true]
[null,null,"8.4.7","Industry levies","D",null,null,"Other industry levies such as UDV and MLA levies but not DA levies",null,true,true]
[null,null,"8.4.8","Livestock selling expenses","D",null,null,"Government levies, yard dues and cartage",null,true,true]
[null,null,"8.4.9","Rates","N",null,null,"Shire rates and charges, domestic water rates where applicable. Note: Irrigation water rates are entered in FEED sub IRRIGATION sub WATER AUTHORITY RATES",null,true,true]
[null,null,"8.4.10","Registration & licences","Y",null,null,"Registration and licences for farm vehicles and machinery",null,true,true]
[null,null,"8.4.11","Shelter trees","Y",null,null,"Trees purchased for shelter on the farm",null,true,true]
[]
["9.0"," Finance Costs",null,null,"D",null,null,"Expenses relating to financing the operation of the business",null,true,{"$f":"IF(OR(J172,J185),FALSE,J171)","v":false}]
[null,9.1,"Interest",null,"N",null,null,"Note: Interest – separate sub-categories should be set up for each loan or hire purchase.  There should be a corresponding sub-category for the Principal portion for each loan or hire purchase under the CAPITAL EXPENSE category",null,true,{"$f":"IF(OR(J173:J184),FALSE,J172)","v":false}]
[null,null,"9.1.1","Interest on loan 1","N",null,null,"Interest on major additions and/or alterations to the land, buildings, livestock, plant and equipment",null,true,{"$f":"J173","v":true}]
[null,null,"9.1.2","Interest on loan 2","N",null,null,"Interest on major additions and/or alterations to the land, buildings, livestock, plant and equipment",null,true,true]
[null,null,"9.1.3","Interest on loan 3","N",null,null,"Interest on major additions and/or alterations to the land, buildings, livestock, plant and equipment",null,true,true]
[null,null,"9.1.4","Interest on loan 4","N",null,null,"Interest on major additions and/or alterations to the land, buildings, livestock, plant and equipment",null,true,true]
[null,null,"9.1.5","Interest on loan 5","N",null,null,"Interest on major additions and/or alterations to the land, buildings, livestock, plant and equipment",null,true,true]
[null,null,"9.1.6","Interest on loan 6","N",null,null,"Interest on major additions and/or alterations to the land, buildings, livestock, plant and equipment",null,true,true]
[null,null,"9.1.7","Interest on loan 7","N",null,null,"Interest on major additions and/or alterations to the land, buildings, livestock, plant and equipment",null,true,true]
[null,null,"9.1.8","Interest on loan 8","N",null,null,"Interest on major additions and/or alterations to the land, buildings, livestock, plant and equipment",null,true,true]
[null,null,"9.1.9","Interest on loan 9","N",null,null,"Interest on major additions and/or alterations to the land, buildings, livestock, plant and equipment",null,true,true]
[null,null,"9.1.10","Interest on loan 10","N",null,null,"Interest on major additions and/or alterations to the land, buildings, livestock, plant and equipment",null,true,true]
[null,null,"9.1.11","Interest on overdraft","N",null,null,"Interest charged for overdraft on farm operating account, often shown as “debit interest” on bank statement and interest on any other bank accounts but not interest on loans as these are entered in their own category under INTEREST ON LOANS",null,true,true]
[null,null,"9.1.12","Other interest expense","N",null,null,"Include any other interest paid here",null,true,true]
[null,9.1999999999999993,"Leases Expense",null,"D",null,null,"Leases over 12 months on land, water, livestock, plant & equipment",null,true,{"$f":"IF(OR(J186:J194),FALSE,J185)","v":false}]
[null,null,"9.2.1","Lease expense plant & equipment 1","D",null,null,"Leases on plant & equipment",null,true,{"$f":"J186","v":true}]
[null,null,"9.2.2","Lease expense plant & equipment 2","D",null,null,"Leases on plant & equipment",null,true,true]
[null,null,"9.2.3","Lease expense plant & equipment 3","D",null,null,"Leases on plant & equipment",null,true,true]
[null,null,"9.2.4","Lease expense plant & equipment 4","D",null,null,"Leases on plant & equipment",null,true,true]
[null,null,"9.2.5","Lease expense livestock 1","D",null,null,"Leases on livestock",null,true,true]
[null,null,"9.2.6","Lease expense livestock 2","D",null,null,"Leases on livestock",null,true,true]
[null,null,"9.2.7","Lease expense livestock 3","D",null,null,"Leases on livestock",null,true,true]
[null,null,"9.2.8","Lease expense livestock 4","D",null,null,"Leases on livestock",null,true,true]
[null,null,"9.2.9","Lease expense land & water 1","D",null,null,"Leases on land and water",null,true,true]
[null,null,"9.2.10","Lease expense land & water 2","D",null,null,"Leases on land and water",null,true,true]
[null,null,"9.2.11","Lease expense land & water 3","D",null,null,"Leases on land and water",null,true,true]
[null,null,"9.2.12","Lease expense land & water 4","D",null,null,"Leases on land and water",null,true,true]
[null,null,"9.2.13","Lease expense land & water 5","D",null,null,"Leases on land and water",null,true,true]
[]
["10.0"," Capital Transactions",null,null,"D",null,null,"Capital costs on items that are part of the management and development of the farm business",null,true,{"$f":"IF(OR(J201,J205,J216,J220),FALSE,J200)","v":false}]
[null,10.1,"Livestock Purchases",null,"Y","Number",null,"Livestock purchases ",null,true,{"$f":"IF(OR(J202:J204),FALSE,J201)","v":false}]
[null,null,"10.1.1","Milker purchases","Y","Number",null,"Cow purchases",null,true,{"$f":"J202","v":true}]
[null,null,"10.1.2","Replacement purchases","Y","Number",null,"Replacement purchases",null,true,true]
[null,null,"10.1.3","Bulls/Other purchases","Y","Number",null,"Bulls or other stock purchases",null,true,true]
[null,10.199999999999999,"Other Capital Purchases",null,"D",null,null,null,null,true,{"$f":"IF(OR(J206:J215),FALSE,J205)","v":false}]
[null,null,"10.2.1","Asset Improvements","Y",null,null,"Improvements: Major additions and/or alterations to the dairy building and dairy plant",null,true,{"$f":"J206","v":true}]
[null,null,"10.2.2","Equipment/Machinery purchases","Y",null,null,"Plant, equipment & vehicles: Tractor, mower, slasher etc. for use on the farm. Milk vat purchase. Farm related vehicles",null,true,true]
[null,null,"10.2.3","Asset development","Y",null,null,"Development: Land forming, recycle systems, pasture establishment and the associated irrigation structures, pumps, motors etc.  Any major farm development or works",null,true,true]
[null,null,"10.2.4","Land purchases","N",null,null,"Land: Land purchased for use by the farm business",null,true,true]
[null,null,"10.2.5","Permanent water purchases","N",null,null,"Water: HRWS, LRWS or bore water purchases",null,true,true]
[null,null,"10.2.6","Share purchases","N",null,null,"Share Equity: Factory share purchases, usually taken directly from milk receipts",null,true,true]
[null,null,"10.2.7","Other capital purchase","Y",null,null,"Other capital purchases that relate to the dairy farm business",null,true,true]
[null,null,"10.2.8","Farm management deposits","N",null,null,"Cash amount despoited into FMDs",null,true,true]
[null,null,"10.2.9","Farm management deposits - withdrawals","N",null,null,"FMDs that become available for use",null,true,true]
[null,null,"10.2.10","Capital introduced","N",null,null,"Capital permanently introduced from non farm business activities",null,true,true]
[null,10.3,"Capital Sales",null,"D",null,null,"Sale of items that have a permanent impact on the balance sheet",null,true,{"$f":"IF(OR(J217:J219),FALSE,J216)","v":false}]
[null,null,"10.3.1","Land sales","N",null,null,"Sale of land utilised in the dairy farm business",null,true,{"$f":"J217","v":true}]
[null,null,"10.3.2","Permanent water sales","N",null,null,"Sale of water utilised in the dairy farm business",null,true,true]
[null,null,"10.3.3","Equipment /Machinery sales","Y",null,null,"Sale of plant and equipment used in the dairy farm business",null,true,true]
[null,10.4,"Loan Principal Repayments",null,"N",null,null,"Loan repayments. Note: Loan payments/Hire purchases – if a loan or hire purchase exists on a capital expenditure item below, a separate sub-category should be set up for the principal portion and defined as principal or HP.  e.g. HP DAIRY PLANT or PRINCIPAL LAND.  There should be a corresponding sub-category for the interest portion for each loan or hire purchase under the FINANCE sub INTEREST category.  If a loan, the loan funds received should also similarly be entered in CAPITAL INCOME sub LOANS in a corresponding sub-category name",null,true,{"$f":"IF(OR(J221:J222),FALSE,J220)","v":false}]
[null,null,"10.4.1","Principal payments  - loans","N",null,null,"Principal repayments on loans",null,true,{"$f":"J221","v":true}]
[null,null,"10.4.2","Principal payments - HP's or CM's","N",null,null,"Principal repayments on hire purchase or chattel mortgages",null,true,true]
[]
["11.0"," Non Farm Income",null,null,"N",null,null,null,null,true,{"$f":"IF(OR(J225:J228),FALSE,J224)","v":false}]
[null,11.1,"Non Farm Wages",null,"N",null,null,"Wages, salaries earned by family members working off-farm.",null,true,{"$f":"J225","v":true}]
[null,11.2,"Non Farm Rent",null,"N",null,null,"Rent received",null,true,true]
[null,11.3,"Funds Contributed",null,"N",null,null,"Funds contributed to the business",null,true,true]
[null,11.4,"Non Farm Dividends",null,"N",null,null,"Dividends from off farm investments",null,true,true]
[]
["12.0"," Non Farm Personal Expenses",null,null,"N",null,null,"Personal expenses that are not tax deductible.  ",null,true,{"$f":"IF(OR(J231,J238:J240),FALSE,J230)","v":false}]
[null,12.1,"Drawings 1",null,"N",null,null,null,null,true,{"$f":"IF(OR(J232:J235),FALSE,J231)","v":false}]
[null,null,"12.1.1","Drawings - living","N",null,null,null,null,true,{"$f":"J232","v":true}]
[null,null,"12.1.2","Drawings - education","N",null,null,null,null,true,true]
[null,null,"12.1.3","Drawings - insurance","N",null,null,"Including life and income protection insurance",null,true,true]
[null,null,"12.1.4","Drawings - medical","N",null,null,null,null,true,{"$f":"J235","v":true}]
[null,null,"12.1.5","Drawings - income tax paid/refunded","N",null,null,null,null,true,true]
[null,null,"12.1.6","Drawings - superannuation contributions (partners)","N",null,null,null,null,true,true]
[null,12.2,"Drawings 2",null,"N",null,null,null,null,true,true]
[null,12.3,"Drawings 3",null,"N",null,null,null,null,true,true]
[null,12.4,"Other Non Farm Expenses",null,"N",null,null,null,null,true,true]
[]
["13.0"," Tax",null,null,"N",null,null,null,null,true,{"$f":"IF(OR(J243:J246),FALSE,J242)","v":false}]
[null,13.1,"GST",null,"N",null,null,"GST amounts",null,true,{"$f":"J243","v":true}]
[null,13.2,"PAYG Instalments",null,"N",null,null,"Pay as you go tax",null,true,true]
[null,13.3,"PAYG Withheld",null,"N",null,null,"Taxheld PAYG for permanent and casual employees",null,true,true]
[null,13.4,"Income Tax",null,"N",null,null,"End of year tax",null,true,true]

{"sheet":"Print","index":2,"n_rows":246,"n_cols":8,"rows_kept":246,"cut":false,"hidden":false,"merged":[]}
[{"$f":"DSCoA!A1","v":"Dairy Standard Chart of Accounts"}]
[{"$f":"DSCoA!A2","v":"Version 8 July 2025"}]
[null,null,null,null,null,{"$f":"DSCoA!F3","v":"Key Physical"}]
[null,null,null,null,{"$f":"DSCoA!E4","v":"GST"},{"$f":"DSCoA!F4","v":"Number"},null,{"$f":"DSCoA!H4","v":"Description"}]
[{"$f":"DSCoA!A5","v":"1.0"},{"$f":"DSCoA!B5","v":"Income"},null,null,null,null,null,{"$f":"DSCoA!H5","v":"All income associated with dairy farming activities"}]
[null,{"$f":"DSCoA!B6","v":1.1000000000000001},{"$f":"DSCoA!C6","v":"Milk Income"},null,{"$f":"DSCoA!E6","v":"Y"},{"$f":"DSCoA!F6","v":"Quantity"},null,{"$f":"DSCoA!H6","v":"Gross Milk Income – i.e butterfat and protein income, step-ups, retrospective payments and colostrums sales. Record other items on factory milk statement in appropriate income or expense categories or sub-categories not here under milk income"}]
[null,{"$f":"DSCoA!B7","v":1.2},{"$f":"DSCoA!C7","v":"Livestock Sales"},null,{"$f":"DSCoA!E7","v":"Y"},{"$f":"DSCoA!F7","v":"Number"},null,{"$f":"DSCoA!H7","v":"Sales of stock from normal herd management practices, not from one-off sales such as major reductions as these are considered as CAPITAL INCOME sub SALES-BREEDERS."}]
[null,null,{"$f":"DSCoA!C8","v":"1.2.1"},{"$f":"DSCoA!D8","v":"Calf sales"},{"$f":"DSCoA!E8","v":"Y"},{"$f":"DSCoA!F8","v":"Number"},null,{"$f":"DSCoA!H8","v":"Bull calves, beef cross calves, heifer calves not kept for herd replacements"}]
[null,null,{"$f":"DSCoA!C9","v":"1.2.2"},{"$f":"DSCoA!D9","v":"Cull sales"},{"$f":"DSCoA!E9","v":"Y"},{"$f":"DSCoA!F9","v":"Number"},null,{"$f":"DSCoA!H9","v":"Culled stock, chopper cows, heifers, bulls etc. culled and sold for slaughter"}]
[null,null,{"$f":"DSCoA!C10","v":"1.2.3"},{"$f":"DSCoA!D10","v":"Other livestock sales"},{"$f":"DSCoA!E10","v":"Y"},{"$f":"DSCoA!F10","v":"Number"},null,{"$f":"DSCoA!H10","v":"Beef cattle, horses, bulls, breeding stock e.g. bulls, cows, heifers if they are regularly sold to others for use for breeding, milking, sires not stock from a major reduction sale or dispersal sale as these sales would be under CAPITAL INCOME"}]
[null,{"$f":"DSCoA!B11","v":1.3},{"$f":"DSCoA!C11","v":"Feed Sales"},null,{"$f":"DSCoA!E11","v":"Y"},{"$f":"DSCoA!F11","v":"Quantity"},null,{"$f":"DSCoA!H11","v":"Sales of feed produced within the dairy business"}]
[null,null,{"$f":"DSCoA!C12","v":"1.3.1"},{"$f":"DSCoA!D12","v":"Hay sales"},{"$f":"DSCoA!E12","v":"Y"},{"$f":"DSCoA!F12","v":"Quantity"},null,{"$f":"DSCoA!H12","v":"Income from hay sales"}]
[null,null,{"$f":"DSCoA!C13","v":"1.3.2"},{"$f":"DSCoA!D13","v":"Silage sales"},{"$f":"DSCoA!E13","v":"Y"},{"$f":"DSCoA!F13","v":"Quantity"},null,{"$f":"DSCoA!H13","v":"Income from silage sales"}]
[null,null,{"$f":"DSCoA!C14","v":"1.3.3"},{"$f":"DSCoA!D14","v":"Other feed sales"},{"$f":"DSCoA!E14","v":"Y"},{"$f":"DSCoA!F14","v":"Quantity"},null,{"$f":"DSCoA!H14","v":"Income from other feed sales such as grain"}]
[null,{"$f":"DSCoA!B15","v":1.4},{"$f":"DSCoA!C15","v":"Water Sales"},null,{"$f":"DSCoA!E15","v":"Y"},{"$f":"DSCoA!F15","v":"ML"},null,{"$f":"DSCoA!H15","v":"Sales of water from normal water management practices, not from one-off sales such as major reductions as these are considered as CAPITAL INCOME"}]
[null,null,{"$f":"DSCoA!C16","v":"1.4.1"},{"$f":"DSCoA!D16","v":"Temporary water sales"},{"$f":"DSCoA!E16","v":"Y"},{"$f":"DSCoA!F16","v":"ML"},null,{"$f":"DSCoA!H16","v":"Sales of temporary water"}]
[null,null,{"$f":"DSCoA!C17","v":"1.4.3"},{"$f":"DSCoA!D17","v":"Other water sales"},{"$f":"DSCoA!E17","v":"Y"},{"$f":"DSCoA!F17","v":"ML"},null,{"$f":"DSCoA!H17","v":"Income from any other water sales"}]
[null,{"$f":"DSCoA!B18","v":1.5},{"$f":"DSCoA!C18","v":"Other Farm Income"},null,null,null,null,{"$f":"DSCoA!H18","v":"Various sources of farm income resulting from farm operations"}]
[null,null,{"$f":"DSCoA!C19","v":"1.5.1"},{"$f":"DSCoA!D19","v":"Interest income"},{"$f":"DSCoA!E19","v":"N"},null,null,{"$f":"DSCoA!H19","v":"Interest received on farm operating bank accounts and short term deposits with bank accounts or factories and any other interest money received because of the operation of the farm business, not interest on off-farm or non-farm investments and personal bank account interest as these go in NON FARM INCOME"}]
[null,null,{"$f":"DSCoA!C20","v":"1.5.2"},{"$f":"DSCoA!D20","v":"Contracting income"},{"$f":"DSCoA!E20","v":"Y"},null,null,{"$f":"DSCoA!H20","v":"Income earned off-farm using the business farm machinery, equipment e.g. hay mower, hay roller, hay/silage processing"}]
[null,null,{"$f":"DSCoA!C21","v":"1.5.3"},{"$f":"DSCoA!D21","v":"Milk company dividends"},{"$f":"DSCoA!E21","v":"D"},null,null,{"$f":"DSCoA!H21","v":"Factory, co-op dividends, not dividends from off farm or non-farm investments"}]
[null,null,{"$f":"DSCoA!C22","v":"1.5.4"},{"$f":"DSCoA!D22","v":"Incentives"},{"$f":"DSCoA!E22","v":"N"},null,null,{"$f":"DSCoA!H22","v":"Trade incentives, discounts on purchases, vat purchase incentives"}]
[null,null,{"$f":"DSCoA!C23","v":"1.5.5"},{"$f":"DSCoA!D23","v":"Lease income"},{"$f":"DSCoA!E23","v":"Y"},null,null,{"$f":"DSCoA!H23","v":"Cows, farming land, machinery etc. that is leased out to others"}]
[null,null,{"$f":"DSCoA!C24","v":"1.5.6"},{"$f":"DSCoA!D24","v":"Rebates - fuel"},{"$f":"DSCoA!E24","v":"D"},null,null,{"$f":"DSCoA!H24","v":"Fuel rebates"}]
[null,null,{"$f":"DSCoA!C25","v":"1.5.7"},{"$f":"DSCoA!D25","v":"Rebates - fertiliser"},{"$f":"DSCoA!E25","v":"D"},null,null,{"$f":"DSCoA!H25","v":"Fertiliser Rebates"}]
[null,null,{"$f":"DSCoA!C26","v":"1.5.8"},{"$f":"DSCoA!D26","v":"Rebates  - other"},{"$f":"DSCoA!E26","v":"D"},null,null,{"$f":"DSCoA!H26","v":"Other rebates, including semen, factory or volume charge rebates"}]
[null,null,{"$f":"DSCoA!C27","v":"1.5.9"},{"$f":"DSCoA!D27","v":"Government payments"},{"$f":"DSCoA!E27","v":"N"},null,null,{"$f":"DSCoA!H27","v":"Government payments in the form of subsidies and support payments"}]
[null,null,{"$f":"DSCoA!C28","v":"1.5.10"},{"$f":"DSCoA!D28","v":"Insurance recoveries"},{"$f":"DSCoA!E28","v":"D"},null,null,{"$f":"DSCoA!H28","v":"Farm insurance recoveries"}]
[null,null,{"$f":"DSCoA!C29","v":"1.5.11"},{"$f":"DSCoA!D29","v":"Other farm income"},{"$f":"DSCoA!E29","v":"D"},null,null,{"$f":"DSCoA!H29","v":"Any other farm income resulting from farm operations such as farm house rental"}]
[]
[{"$f":"DSCoA!A31","v":"2.0"},{"$f":"DSCoA!B31","v":"Herd Costs"},null,null,{"$f":"DSCoA!E31","v":"Y"},null,null,{"$f":"DSCoA!H31","v":"All expenses relating to maintaining herd quality and assisting herd management"}]
[null,{"$f":"DSCoA!B32","v":2.1},{"$f":"DSCoA!C32","v":"AI & Herd Test "},null,{"$f":"DSCoA!E32","v":"Y"},null,null,{"$f":"DSCoA!H32","v":"All artificial insemination and herd test expenses"}]
[null,null,{"$f":"DSCoA!C33","v":"2.1.1"},{"$f":"DSCoA!D33","v":"AI/Semen"},{"$f":"DSCoA!E33","v":"Y"},null,null,{"$f":"DSCoA!H33","v":"Artificial insemination technician, semen, embryo, ET drugs, gloves, nitrogen for semen tank, vet services, fees and drugs associated with ET work, CIDR, PG and induction"}]
[null,null,{"$f":"DSCoA!C34","v":"2.1.2"},{"$f":"DSCoA!D34","v":"Herd test"},{"$f":"DSCoA!E34","v":"Y"},null,null,{"$f":"DSCoA!H34","v":"Herd test charges"}]
[null,null,{"$f":"DSCoA!C35","v":"2.1.3"},{"$f":"DSCoA!D35","v":"Other breeding costs"},{"$f":"DSCoA!E35","v":"Y"},null,null,{"$f":"DSCoA!H35","v":"Tags for calves, heifers and cow identification, freeze branding of all classes of stock"}]
[null,{"$f":"DSCoA!B36","v":2.2000000000000002},{"$f":"DSCoA!C36","v":"Animal Health"},null,{"$f":"DSCoA!E36","v":"Y"},null,null,{"$f":"DSCoA!H36","v":"All animal health expenses including drugs and veterinary fees but excluding any AI expenses"}]
[null,null,{"$f":"DSCoA!C37","v":"2.2.1"},{"$f":"DSCoA!D37","v":"Drugs"},{"$f":"DSCoA!E37","v":"Y"},null,null,{"$f":"DSCoA!H37","v":"Drench, drench guns, lice and parasite treatment and prevention – minerals and vitamins injected to all classes of stock – vaccines, injections (usually preventative) drugs and other treatments not restricted to purchase from vets including teat dip"}]
[null,null,{"$f":"DSCoA!C38","v":"2.2.2"},{"$f":"DSCoA!D38","v":"Veterinary fees"},{"$f":"DSCoA!E38","v":"Y"},null,null,{"$f":"DSCoA!H38","v":"Vet visits, operations, drugs restricted to purchase from a veterinary surgeon or requiring veterinary sanction"}]
[null,{"$f":"DSCoA!B39","v":2.2999999999999998},{"$f":"DSCoA!C39","v":"Calf Rearing"},null,{"$f":"DSCoA!E39","v":"Y"},null,null,{"$f":"DSCoA!H39","v":"Any expenses incurred for feeding, treating and maintaining calves up to the time they are weaned"}]
[null,null,{"$f":"DSCoA!C40","v":"2.3.1"},{"$f":"DSCoA!D40","v":"Calf feed"},{"$f":"DSCoA!E40","v":"Y"},null,null,{"$f":"DSCoA!H40","v":"Grain, pellets and growth promotants, for calves up to the time they are weaned"}]
[null,null,{"$f":"DSCoA!C41","v":"2.3.2"},{"$f":"DSCoA!D41","v":"Milk powder"},{"$f":"DSCoA!E41","v":"Y"},null,null,{"$f":"DSCoA!H41","v":"Milk powder and milk additives for calves up to the time they are weaned"}]
[null,null,{"$f":"DSCoA!C42","v":"2.3.3"},{"$f":"DSCoA!D42","v":"Bedding"},{"$f":"DSCoA!E42","v":"Y"},null,null,{"$f":"DSCoA!H42","v":"Rice hulls or other bedding material"}]
[null,null,{"$f":"DSCoA!C43","v":"2.3.4"},{"$f":"DSCoA!D43","v":"Other calf rearing costs"},{"$f":"DSCoA!E43","v":"Y"},null,null,{"$f":"DSCoA!H43","v":"Drenching and other calf shed treatments for calves up to the time they are weaned"}]
[null,{"$f":"DSCoA!B44","v":2.4},{"$f":"DSCoA!C44","v":"Other Herd Costs"},null,{"$f":"DSCoA!E44","v":"Y"},null,null,{"$f":"DSCoA!H44","v":"Short term lease of cows, heifers and bulls for periods of less than 12 months as these have a different tax implication to leases in excess of 12 months.  Registrations, transfers, classifications, photos, show entry fees"}]
[]
[{"$f":"DSCoA!A46","v":"3.0"},{"$f":"DSCoA!B46","v":"Shed Costs"},null,null,{"$f":"DSCoA!E46","v":"Y"},null,null,{"$f":"DSCoA!H46","v":"All expenses relating to milk harvesting"}]
[null,{"$f":"DSCoA!B47","v":3.1},{"$f":"DSCoA!C47","v":"Shed Power"},null,{"$f":"DSCoA!E47","v":"Y"},null,null,{"$f":"DSCoA!H47","v":"Electricity, gas fuel for heating, cooling lighting milking"}]
[null,{"$f":"DSCoA!B48","v":3.2},{"$f":"DSCoA!C48","v":"Dairy Supplies"},null,{"$f":"DSCoA!E48","v":"Y"},null,null,{"$f":"DSCoA!H48","v":"Chemicals, detergents used for washing, sterilising, cleaning, fly control. Inflations, rubber tubes, filter socks, strainers, vacuum pump oil, isolated purchases of cups, claws and bowls etc."}]
[null,null,{"$f":"DSCoA!C49","v":"3.2.1"},{"$f":"DSCoA!D49","v":"Dairy consumables"},{"$f":"DSCoA!E49","v":"Y"},null,null,{"$f":"DSCoA!H49","v":"Chemicals, detergents used for washing, sterilising, cleaning, fly control. Filter socks, strainers, vacuum pump oil, isolated purchases of cups, claws and bowls etc."}]
[null,null,{"$f":"DSCoA!C50","v":"3.2.2"},{"$f":"DSCoA!D50","v":"Rubberware"},{"$f":"DSCoA!E50","v":"Y"},null,null,{"$f":"DSCoA!H50","v":"Inflations, rubber tubes"}]
[null,{"$f":"DSCoA!B51","v":3.3},{"$f":"DSCoA!C51","v":"Other Shed Costs"},null,{"$f":"DSCoA!E51","v":"Y"}]
[]
[{"$f":"DSCoA!A53","v":"4.0"},{"$f":"DSCoA!B53","v":" Home Grown Feed Costs"},null,null,null,null,null,{"$f":"DSCoA!H53","v":"All costs associated with growing feed on land under control of the business"}]
[null,{"$f":"DSCoA!B54","v":4.0999999999999996},{"$f":"DSCoA!C54","v":"Fertiliser"},null,{"$f":"DSCoA!E54","v":"Y"},{"$f":"DSCoA!F54","v":"Quantity"},null,{"$f":"DSCoA!H54","v":"All NPKS and trace element fertiliser products and compounds including blending, mixing, cartage, bin hire and spreading"}]
[null,null,{"$f":"DSCoA!C55","v":"4.1.1"},{"$f":"DSCoA!D55","v":"PKS"},{"$f":"DSCoA!E55","v":"Y"},{"$f":"DSCoA!F55","v":"Quantity"},null,{"$f":"DSCoA!H55","v":"All PKS and trace element fertiliser products and compounds including blending, mixing, cartage, bin hire and spreading"}]
[null,null,{"$f":"DSCoA!C56","v":"4.1.2"},{"$f":"DSCoA!D56","v":"Urea"},{"$f":"DSCoA!E56","v":"Y"},{"$f":"DSCoA!F56","v":"Quantity"},null,{"$f":"DSCoA!H56","v":"All urea including cartage, bin hire and spreading"}]
[null,null,{"$f":"DSCoA!C57","v":"4.1.3"},{"$f":"DSCoA!D57","v":"Nitrogen blends"},{"$f":"DSCoA!E57","v":"Y"},{"$f":"DSCoA!F57","v":"Quantity"},null,{"$f":"DSCoA!H57","v":"All nitrogen blends including blending, mixing, cartage, bin hire and spreading"}]
[null,null,{"$f":"DSCoA!C58","v":"4.1.4"},{"$f":"DSCoA!D58","v":"Lime & gypsum"},{"$f":"DSCoA!E58","v":"Y"},{"$f":"DSCoA!F58","v":"Quantity"},null,{"$f":"DSCoA!H58","v":"Lime & Gypsum including blending, mixing, cartage, bin hire and spreading"}]
[null,null,{"$f":"DSCoA!C59","v":"4.1.5"},{"$f":"DSCoA!D59","v":"Effluent spreading/disposal"},{"$f":"DSCoA!E59","v":"Y"},null,null,{"$f":"DSCoA!H59","v":"Costs associated with spreading effluent "}]
[null,null,{"$f":"DSCoA!C60","v":"4.1.6"},{"$f":"DSCoA!D60","v":"Other fertiliser costs"},{"$f":"DSCoA!E60","v":"Y"},null,null,{"$f":"DSCoA!H60","v":"Other fertiliser products"}]
[null,{"$f":"DSCoA!B61","v":4.2},{"$f":"DSCoA!C61","v":"Irrigation"},null,null,null,null,{"$f":"DSCoA!H61","v":"All costs associated with irrigation in the dairy business but not new structures used in new land forming and pasture establishment as these major expenses should be entered into CAPITAL EXPENSES. Maintenance of Irrigation structures and physical channel cleaning should be entered in OVERHEADS sub REPAIRS & MAINTENANCE sub IRRIGATION"}]
[null,null,{"$f":"DSCoA!C62","v":"4.2.1"},{"$f":"DSCoA!D62","v":"Water authority rates"},{"$f":"DSCoA!E62","v":"N"},null,null,{"$f":"DSCoA!H62","v":"Water rates for supply and drainage relating to farm irrigation water"}]
[null,null,{"$f":"DSCoA!C63","v":"4.2.2"},{"$f":"DSCoA!D63","v":"TWE purchases"},{"$f":"DSCoA!E63","v":"D"},null,null,{"$f":"DSCoA!H63","v":"Purchase of temporary water transfers in addition to water right or allocation"}]
[null,null,{"$f":"DSCoA!C64","v":"4.2.3"},{"$f":"DSCoA!D64","v":"Pumping costs  - electricity"},{"$f":"DSCoA!E64","v":"Y"},null,null,{"$f":"DSCoA!H64","v":"Electricity costs for pumping irrigation water"}]
[null,null,{"$f":"DSCoA!C65","v":"4.2.4"},{"$f":"DSCoA!D65","v":"Pumping costs  - diesel"},{"$f":"DSCoA!E65","v":"Y"},null,null,{"$f":"DSCoA!H65","v":"Diesel costs for pumping irrigation water"}]
[null,null,{"$f":"DSCoA!C66","v":"4.2.5"},{"$f":"DSCoA!D66","v":"Other irrigation costs"},{"$f":"DSCoA!E66","v":"Y"},null,null,{"$f":"DSCoA!H66","v":"Any other costs incurred to run the irrigation excluding repairs and maintenance"}]
[null,{"$f":"DSCoA!B67","v":4.3},{"$f":"DSCoA!C67","v":"Hay & Silage Making"},null,{"$f":"DSCoA!E67","v":"Y"},null,null,{"$f":"DSCoA!H67","v":"Costs for on-farm hay and silage making, including twine, plastic wrap and contractors"}]
[null,null,{"$f":"DSCoA!C68","v":"4.3.1"},{"$f":"DSCoA!D68","v":"Hay making"},{"$f":"DSCoA!E68","v":"Y"},null,null,{"$f":"DSCoA!H68","v":"Cutting, twine, net wrap, pressing, baling, hay inoculants, cartage on hay and freight on twine etc."}]
[null,null,{"$f":"DSCoA!C69","v":"4.3.2"},{"$f":"DSCoA!D69","v":"Silage making"},{"$f":"DSCoA!E69","v":"Y"},null,null,{"$f":"DSCoA!H69","v":"Harvesting, transport, plastic wrap, pressing, baling, wrapping, chopping, covering, compacting contractors for silage, silage inoculants, cartage of silage purchases and freight on plastic covering etc"}]
[null,null,{"$f":"DSCoA!C70","v":"4.3.3"},{"$f":"DSCoA!D70","v":"Crop harvesting"},{"$f":"DSCoA!E70","v":"Y"},null,null,{"$f":"DSCoA!H70","v":"Harvesting and storage of crops including crop purchases and cartage and freight etc"}]
[null,null,{"$f":"DSCoA!C71","v":"4.3.4"},{"$f":"DSCoA!D71","v":"Other hay & silage making costs"},{"$f":"DSCoA!E71","v":"Y"},null,null,{"$f":"DSCoA!H71","v":"Any other costs incurred in making hay and silage on farm"}]
[null,{"$f":"DSCoA!B72","v":4.4000000000000004},{"$f":"DSCoA!C72","v":"Pasture & Cropping"},null,{"$f":"DSCoA!E72","v":"Y"},null,null,{"$f":"DSCoA!H72","v":"Costs associated with pasture renovation and cropping such as seed, weed & pest and contractor costs. Not new land forming and the associated new pasture establishment as these major expenses should be entered  under CAPITAL EXPENSE sub DEVELOPMENT"}]
[null,null,{"$f":"DSCoA!C73","v":"4.4.1"},{"$f":"DSCoA!D73","v":"Seed"},{"$f":"DSCoA!E73","v":"Y"},null,null,{"$f":"DSCoA!H73","v":"Seed purchases"}]
[null,null,{"$f":"DSCoA!C74","v":"4.4.2"},{"$f":"DSCoA!D74","v":"Weed & pest control"},{"$f":"DSCoA!E74","v":"Y"},null,null,{"$f":"DSCoA!H74","v":"Chemicals and contractors for the control of weeds and pests in pastures, roadsides and channels.  Chemicals, baits, ammunition, contractors used to control vermin"}]
[null,null,{"$f":"DSCoA!C75","v":"4.4.3"},{"$f":"DSCoA!D75","v":"Other pasture & cropping costs"},{"$f":"DSCoA!E75","v":"Y"},null,null,{"$f":"DSCoA!H75","v":"Ploughing, ripping, discing, power harrowing, seedbed preparation, seed for crop and pasture sowing and pasture renovation, direct drilling contractor, oversowing and planting"}]
[null,{"$f":"DSCoA!B76","v":4.5},{"$f":"DSCoA!C76","v":"Fuel & Oil"},null,{"$f":"DSCoA!E76","v":"Y"},null,null,{"$f":"DSCoA!H76","v":"Fuel used for vehicles, equipment, motors used for feed production "}]
[null,null,{"$f":"DSCoA!C77","v":"4.5.1"},{"$f":"DSCoA!D77","v":"Diesel"},{"$f":"DSCoA!E77","v":"Y"},{"$f":"DSCoA!F77","v":"Litres"},null,{"$f":"DSCoA!H77","v":"Diesel costs except those for irrigation"}]
[null,null,{"$f":"DSCoA!C78","v":"4.5.2"},{"$f":"DSCoA!D78","v":"Unleaded"},{"$f":"DSCoA!E78","v":"Y"},null,null,{"$f":"DSCoA!H78","v":"Unleaded petrol"}]
[null,null,{"$f":"DSCoA!C79","v":"4.5.3"},{"$f":"DSCoA!D79","v":"Gas"},{"$f":"DSCoA!E79","v":"Y"},null,null,{"$f":"DSCoA!H79","v":"Gas"}]
[null,null,{"$f":"DSCoA!C80","v":"4.5.4"},{"$f":"DSCoA!D80","v":"Oil/Grease"},{"$f":"DSCoA!E80","v":"Y"},null,null,{"$f":"DSCoA!H80","v":"Oil, grease"}]
[]
[{"$f":"DSCoA!A82","v":"5.0"},{"$f":"DSCoA!B82","v":" Purchased Feed Costs"},null,null,{"$f":"DSCoA!E82","v":"Y"},null,null,{"$f":"DSCoA!H82","v":"All purchased feeds including cartage, feed additives and agistment"}]
[null,{"$f":"DSCoA!B83","v":5.0999999999999996},{"$f":"DSCoA!C83","v":"Concentrates"},null,{"$f":"DSCoA!E83","v":"Y"},{"$f":"DSCoA!F83","v":"Quantity"},null,{"$f":"DSCoA!H83","v":"Purchased concentrates (pellets, grain mixes etc)"}]
[null,null,{"$f":"DSCoA!C84","v":"5.1.1"},{"$f":"DSCoA!D84","v":"Concentrate 1"},{"$f":"DSCoA!E84","v":"Y"},{"$f":"DSCoA!F84","v":"Quantity"},null,{"$f":"DSCoA!H84","v":"Grain, grain mixes and pellets"}]
[null,null,{"$f":"DSCoA!C85","v":"5.1.2"},{"$f":"DSCoA!D85","v":"Concentrate 2"},{"$f":"DSCoA!E85","v":"Y"},{"$f":"DSCoA!F85","v":"Quantity"},null,{"$f":"DSCoA!H85","v":"Legumes and protein meals"}]
[null,null,{"$f":"DSCoA!C86","v":"5.1.3"},{"$f":"DSCoA!D86","v":"Concentrate 3"},{"$f":"DSCoA!E86","v":"Y"},{"$f":"DSCoA!F86","v":"Quantity"}]
[null,null,{"$f":"DSCoA!C87","v":"5.1.4"},{"$f":"DSCoA!D87","v":"Concentrate 4"},{"$f":"DSCoA!E87","v":"Y"},{"$f":"DSCoA!F87","v":"Quantity"}]
[null,null,{"$f":"DSCoA!C88","v":"5.1.5"},{"$f":"DSCoA!D88","v":"Concentrate 5"},{"$f":"DSCoA!E88","v":"Y"},{"$f":"DSCoA!F88","v":"Quantity"}]
[null,null,{"$f":"DSCoA!C89","v":"5.1.6"},{"$f":"DSCoA!D89","v":"Concentrate 6"},{"$f":"DSCoA!E89","v":"Y"},{"$f":"DSCoA!F89","v":"Quantity"}]
[null,{"$f":"DSCoA!B90","v":5.2},{"$f":"DSCoA!C90","v":"Purchased Fodder"},null,{"$f":"DSCoA!E90","v":"Y"},{"$f":"DSCoA!F90","v":"Quantity"},null,{"$f":"DSCoA!H90","v":"Purchased fodder costs inluding hay and silage"}]
[null,null,{"$f":"DSCoA!C91","v":"5.2.1"},{"$f":"DSCoA!D91","v":"Purchased fodder 1"},{"$f":"DSCoA!E91","v":"Y"},{"$f":"DSCoA!F91","v":"Quantity"},null,{"$f":"DSCoA!H91","v":"Hay purchases"}]
[null,null,{"$f":"DSCoA!C92","v":"5.2.2"},{"$f":"DSCoA!D92","v":"Purchased fodder 2"},{"$f":"DSCoA!E92","v":"Y"},{"$f":"DSCoA!F92","v":"Quantity"},null,{"$f":"DSCoA!H92","v":"Silage purchases"}]
[null,null,{"$f":"DSCoA!C93","v":"5.2.3"},{"$f":"DSCoA!D93","v":"Purchased fodder 3"},{"$f":"DSCoA!E93","v":"Y"},{"$f":"DSCoA!F93","v":"Quantity"},null,{"$f":"DSCoA!H93","v":"Haylage purchases"}]
[null,null,{"$f":"DSCoA!C94","v":"5.2.4"},{"$f":"DSCoA!D94","v":"Purchased fodder 4"},{"$f":"DSCoA!E94","v":"Y"},{"$f":"DSCoA!F94","v":"Quantity"}]
[null,null,{"$f":"DSCoA!C95","v":"5.2.5"},{"$f":"DSCoA!D95","v":"Purchased fodder 5"},{"$f":"DSCoA!E95","v":"Y"},{"$f":"DSCoA!F95","v":"Quantity"}]
[null,null,{"$f":"DSCoA!C96","v":"5.2.6"},{"$f":"DSCoA!D96","v":"Purchased fodder 6"},{"$f":"DSCoA!E96","v":"Y"},{"$f":"DSCoA!F96","v":"Quantity"}]
[null,{"$f":"DSCoA!B97","v":5.3},{"$f":"DSCoA!C97","v":"ByProducts"},null,{"$f":"DSCoA!E97","v":"Y"},{"$f":"DSCoA!F97","v":"Quantity"},null,{"$f":"DSCoA!H97","v":"Purchased byproducts"}]
[null,null,{"$f":"DSCoA!C98","v":"5.3.1"},{"$f":"DSCoA!D98","v":"Byproduct 1"},{"$f":"DSCoA!E98","v":"Y"},{"$f":"DSCoA!F98","v":"Quantity"},null,{"$f":"DSCoA!H98","v":"Brewers grain"}]
[null,null,{"$f":"DSCoA!C99","v":"5.3.2"},{"$f":"DSCoA!D99","v":"Byproduct 2"},{"$f":"DSCoA!E99","v":"Y"},{"$f":"DSCoA!F99","v":"Quantity"},null,{"$f":"DSCoA!H99","v":"Citrus pulp"}]
[null,null,{"$f":"DSCoA!C100","v":"5.3.3"},{"$f":"DSCoA!D100","v":"Byproduct 3"},{"$f":"DSCoA!E100","v":"Y"},{"$f":"DSCoA!F100","v":"Quantity"},null,{"$f":"DSCoA!H100","v":"Other byproduct"}]
[null,null,{"$f":"DSCoA!C101","v":"5.3.4"},{"$f":"DSCoA!D101","v":"Byproduct 4"},{"$f":"DSCoA!E101","v":"Y"},{"$f":"DSCoA!F101","v":"Quantity"}]
[null,{"$f":"DSCoA!B102","v":5.4},{"$f":"DSCoA!C102","v":"Other Purchased Feeds"},null,{"$f":"DSCoA!E102","v":"Y"},null,null,{"$f":"DSCoA!H102","v":"Any other purchased feed costs"}]
[null,null,{"$f":"DSCoA!C103","v":"5.4.1"},{"$f":"DSCoA!D103","v":"Other purchased feed 1"},{"$f":"DSCoA!E103","v":"Y"},null,null,{"$f":"DSCoA!H103","v":"Additives"}]
[null,null,{"$f":"DSCoA!C104","v":"5.4.2"},{"$f":"DSCoA!D104","v":"Other purchased feed 2"},{"$f":"DSCoA!E104","v":"Y"}]
[null,null,{"$f":"DSCoA!C105","v":"5.4.3"},{"$f":"DSCoA!D105","v":"Other purchased feed 3"},{"$f":"DSCoA!E105","v":"Y"}]
[null,null,{"$f":"DSCoA!C106","v":"5.4.4"},{"$f":"DSCoA!D106","v":"Other purchased feed 4"},{"$f":"DSCoA!E106","v":"Y"}]
[null,{"$f":"DSCoA!B107","v":5.5},{"$f":"DSCoA!C107","v":"Agistment"},null,{"$f":"DSCoA!E107","v":"Y"},{"$f":"DSCoA!F107","v":"Number"},null,{"$f":"DSCoA!H107","v":"Agistment and short term land leases (less than 12 months), contract rearing of all classes of stock after weaning, cartage to and from agistment"}]
[null,null,{"$f":"DSCoA!C108","v":"5.5.1"},{"$f":"DSCoA!D108","v":"Milker agistment"},{"$f":"DSCoA!E108","v":"Y"},{"$f":"DSCoA!F108","v":"Number"},null,{"$f":"DSCoA!H108","v":"Agistment or the purchase of standing feed grazed by the milking herd including cartage to and from the agistment should all be entered in this category"}]
[null,null,{"$f":"DSCoA!C109","v":"5.5.2"},{"$f":"DSCoA!D109","v":"Dry cow agistment"},{"$f":"DSCoA!E109","v":"Y"},{"$f":"DSCoA!F109","v":"Number"},null,{"$f":"DSCoA!H109","v":"Agistment or the purchase of standing feed grazed by dry cows including cartage to and from the agistment should all be entered in this category"}]
[null,null,{"$f":"DSCoA!C110","v":"5.5.3"},{"$f":"DSCoA!D110","v":"Replacement agistment"},{"$f":"DSCoA!E110","v":"Y"},{"$f":"DSCoA!F110","v":"Number"},null,{"$f":"DSCoA!H110","v":"Agistment, contract rearing, contract growing, weight gain agistment  or the purchase of standing feed grazed by the replacements including cartage to and from the agistment should all be entered in this category"}]
[null,null,{"$f":"DSCoA!C111","v":"5.5.4"},{"$f":"DSCoA!D111","v":"Other agistment"},{"$f":"DSCoA!E111","v":"Y"},{"$f":"DSCoA!F111","v":"Number"},null,{"$f":"DSCoA!H111","v":"Agistment, contract rearing, contract growing, weight gain agistment  or the purchase of standing feed grazed by the other livestock including cartage to and from the agistment should all be entered in this category"}]
[null,{"$f":"DSCoA!B112","v":"5.6"},{"$f":"DSCoA!C112","v":"Other Feed Costs"},null,{"$f":"DSCoA!E112","v":"Y"},null,null,{"$f":"DSCoA!H112","v":"Includes any other feed costs that have not been included elsewhere here. These may include the cost of washing out or altering grain contracts and cartage costs not already accounted for"}]
[]
[{"$f":"DSCoA!A114","v":"6.0"},{"$f":"DSCoA!B114","v":"Employed Labour Cost"},null,null,null,null,null,{"$f":"DSCoA!H114","v":"Permanent labour and casual labour. Note: Contractors and contracting should be entered under the category that relates to the work carried out"}]
[null,{"$f":"DSCoA!B115","v":6.1},{"$f":"DSCoA!C115","v":"Wages"},null,{"$f":"DSCoA!E115","v":"N"},null,null,{"$f":"DSCoA!H115","v":"Permanent farm employees either full-time or part-time and casual farm employees"}]
[null,{"$f":"DSCoA!B116","v":6.2},{"$f":"DSCoA!C116","v":"Sharefarmer"},null,{"$f":"DSCoA!E116","v":"D"},null,null,{"$f":"DSCoA!H116","v":"Share paid to sharefarmer"}]
[null,{"$f":"DSCoA!B117","v":6.3},{"$f":"DSCoA!C117","v":"Contract Labour/Relief Milker"},null,{"$f":"DSCoA!E117","v":"D"},null,null,{"$f":"DSCoA!H117","v":"Payments to contract or relief milkers"}]
[null,{"$f":"DSCoA!B118","v":6.4},{"$f":"DSCoA!C118","v":"Protective Clothing "},null,{"$f":"DSCoA!E118","v":"Y"},null,null,{"$f":"DSCoA!H118","v":"Apron, gloves, gum boots, waterproof clothes etc"}]
[null,{"$f":"DSCoA!B119","v":6.5},{"$f":"DSCoA!C119","v":"Staff Amenitities"},null,{"$f":"DSCoA!E119","v":"Y"},null,null,{"$f":"DSCoA!H119","v":"Includes things like tea and coffee and light meals provided to staff"}]
[null,{"$f":"DSCoA!B120","v":6.6},{"$f":"DSCoA!C120","v":"Training & Development"},null,{"$f":"DSCoA!E120","v":"D"},null,null,{"$f":"DSCoA!H120","v":"Fees for courses, seminars, workshops etc. that relate to the farm business (including travel, meals, accommodation, materials) for permanent and casual employees"}]
[null,{"$f":"DSCoA!B121","v":6.7},{"$f":"DSCoA!C121","v":"Superannuation"},null,{"$f":"DSCoA!E121","v":"N"},null,null,{"$f":"DSCoA!H121","v":"Superannuation contributions for permanent and casual employees"}]
[null,{"$f":"DSCoA!B122","v":6.8},{"$f":"DSCoA!C122","v":"Workcover"},null,{"$f":"DSCoA!E122","v":"Y"},null,null,{"$f":"DSCoA!H122","v":"Workcover for permanent and casual employees"}]
[{"$f":"DSCoA!A123","v":"7.0"},{"$f":"DSCoA!B123","v":"Repairs & Maintenance"},null,null,{"$f":"DSCoA!E123","v":"Y"},null,null,{"$f":"DSCoA!H123","v":"Repairs and maintenance on farm improvements and plant and equipment this does not include capital improvements which should be entered under CAPITAL EXPENSES"}]
[null,{"$f":"DSCoA!B124","v":7.1},{"$f":"DSCoA!C124","v":"Repairs & Maintenance Buildings"},null,{"$f":"DSCoA!E124","v":"Y"},null,null,{"$f":"DSCoA!H124","v":"Maintenance of farm buildings and structures.  The fixtures that would be considered to be part of the farm when/if it is sold"}]
[null,{"$f":"DSCoA!B125","v":7.2},{"$f":"DSCoA!C125","v":"Repairs & Maintenance Fencing"},null,{"$f":"DSCoA!E125","v":"Y"},null,null,{"$f":"DSCoA!H125","v":"Fencing contractors, yards, gates, insulators, gate tapes, fence reels, posts, wire, yard mesh, hinges, gate chains etc"}]
[null,{"$f":"DSCoA!B126","v":7.3},{"$f":"DSCoA!C126","v":"Repairs & Maintenance Houses"},null,{"$f":"DSCoA!E126","v":"Y"},null,null,{"$f":"DSCoA!H126","v":"Repairs to farm houses"}]
[null,{"$f":"DSCoA!B127","v":7.4},{"$f":"DSCoA!C127","v":"Repairs & Maintenance Irrigation"},null,{"$f":"DSCoA!E127","v":"Y"},null,null,{"$f":"DSCoA!H127","v":"Maintenance of irrigation structures and channel cleaning. Note:Structures used in new landforming and pasture establishment should be entered under CAPITAL EXPENSE sub DEVELOPMENT.  "}]
[null,{"$f":"DSCoA!B128","v":7.5},{"$f":"DSCoA!C128","v":"Repairs & Maintenance Dairy"},null,{"$f":"DSCoA!E128","v":"Y"},null,null,{"$f":"DSCoA!H128","v":"Vat repair, platform repair, sludge pump repair"}]
[null,{"$f":"DSCoA!B129","v":7.6},{"$f":"DSCoA!C129","v":"Repairs & Maintenance Plant & Equipment"},null,{"$f":"DSCoA!E129","v":"Y"},null,null,{"$f":"DSCoA!H129","v":"Repairs and maintenance to farm equipment, plant and  machinery "}]
[null,{"$f":"DSCoA!B130","v":7.7},{"$f":"DSCoA!C130","v":"Repairs & Maintenance Water Supply"},null,{"$f":"DSCoA!E130","v":"Y"},null,null,{"$f":"DSCoA!H130","v":"Repairs and maintenance of water troughs, poly pipe, pipe and trough fittings, pressure pumps for stock water supply"}]
[null,{"$f":"DSCoA!B131","v":7.8},{"$f":"DSCoA!C131","v":"Repairs & Maintenance Tracks and Laneways"},null,{"$f":"DSCoA!E131","v":"Y"},null,null,{"$f":"DSCoA!H131","v":"Repairs and maintenance to tracks and laneways"}]
[null,{"$f":"DSCoA!B132","v":7.9},{"$f":"DSCoA!C132","v":"Repairs & Maintenance Replacement Tools"},null,{"$f":"DSCoA!E132","v":"Y"},null,null,{"$f":"DSCoA!H132","v":"Replacement tool purchases"}]
[{"$f":"DSCoA!A133","v":"8.0"},{"$f":"DSCoA!B133","v":"Other Overheads"},null,null,null,null,null,{"$f":"DSCoA!H133","v":"Other Overheads Incurred to run the farm business"}]
[null,{"$f":"DSCoA!B134","v":8.1},{"$f":"DSCoA!C134","v":"Administration"},null,null,null,null,{"$f":"DSCoA!H134","v":"Administration expenses related to the operation of the farm business including items such as accounting, consulting, phone and office expenses"}]
[null,null,{"$f":"DSCoA!C135","v":"8.1.1"},{"$f":"DSCoA!D135","v":"Accounting fees"},{"$f":"DSCoA!E135","v":"Y"},null,null,{"$f":"DSCoA!H135","v":"Professionals used for accounting advice in relation to the farm business"}]
[null,null,{"$f":"DSCoA!C136","v":"8.1.2"},{"$f":"DSCoA!D136","v":"Advertising"},{"$f":"DSCoA!E136","v":"Y"},null,null,{"$f":"DSCoA!H136","v":"Advertisting expenses relating to sale of milk, livestock, feed or capital items"}]
[null,null,{"$f":"DSCoA!C137","v":"8.1.3"},{"$f":"DSCoA!D137","v":"Bank fees"},{"$f":"DSCoA!E137","v":"N"},null,null,{"$f":"DSCoA!H137","v":"Bank generated charges, account keeping fees, reference fee, stop cheque fee"}]
[null,null,{"$f":"DSCoA!C138","v":"8.1.4"},{"$f":"DSCoA!D138","v":"Borrowing costs"},{"$f":"DSCoA!E138","v":"N"},null,null,{"$f":"DSCoA!H138","v":"Costs related to borrowing funds for farm use – Fees to establish farm related loans"}]
[null,null,{"$f":"DSCoA!C139","v":"8.1.5"},{"$f":"DSCoA!D139","v":"Computer expenses"},{"$f":"DSCoA!E139","v":"Y"},null,null,{"$f":"DSCoA!H139","v":"Computer expenses, including anti-virus software"}]
[null,null,{"$f":"DSCoA!C140","v":"8.1.6"},{"$f":"DSCoA!D140","v":"Consultants"},{"$f":"DSCoA!E140","v":"Y"},null,null,{"$f":"DSCoA!H140","v":"Professionals used for financial,business management and production advice in relation to the farm business"}]
[null,null,{"$f":"DSCoA!C141","v":"8.1.7"},{"$f":"DSCoA!D141","v":"Donations"},{"$f":"DSCoA!E141","v":"N"},null,null,{"$f":"DSCoA!H141","v":"Donations"}]
[null,null,{"$f":"DSCoA!C142","v":"8.1.8"},{"$f":"DSCoA!D142","v":"Filing fees"},{"$f":"DSCoA!E142","v":"N"},null,null,{"$f":"DSCoA!H142","v":"Filing fees, including those paid to ASIC"}]
[null,null,{"$f":"DSCoA!C143","v":"8.1.9"},{"$f":"DSCoA!D143","v":"Internet costs"},{"$f":"DSCoA!E143","v":"Y"},null,null,{"$f":"DSCoA!H143","v":"Email and internet"}]
[null,null,{"$f":"DSCoA!C144","v":"8.1.10"},{"$f":"DSCoA!D144","v":"Legal fees"},{"$f":"DSCoA!E144","v":"Y"},null,null,{"$f":"DSCoA!H144","v":"Legal fees in relation to the farm business"}]
[null,null,{"$f":"DSCoA!C145","v":"8.1.11"},{"$f":"DSCoA!D145","v":"Light & power"},{"$f":"DSCoA!E145","v":"Y"},null,null,{"$f":"DSCoA!H145","v":"Light and power for the house and office"}]
[null,null,{"$f":"DSCoA!C146","v":"8.1.12"},{"$f":"DSCoA!D146","v":"Printing, postage & stationery "},{"$f":"DSCoA!E146","v":"Y"},null,null,{"$f":"DSCoA!H146","v":"Stationery, postage, printing, stamps, postal charges, post office box rental, envelopes, paper supplies, pens, pencils etc. for use in farm office"}]
[null,null,{"$f":"DSCoA!C147","v":"8.1.13"},{"$f":"DSCoA!D147","v":"Subscriptions & journals"},{"$f":"DSCoA!E147","v":"Y"},null,null,{"$f":"DSCoA!H147","v":"Farm journals, rural newspapers and magazines etc"}]
[null,null,{"$f":"DSCoA!C148","v":"8.1.14"},{"$f":"DSCoA!D148","v":"Telephone"},{"$f":"DSCoA!E148","v":"Y"},null,null,{"$f":"DSCoA!H148","v":"Office, home and mobile phones"}]
[null,null,{"$f":"DSCoA!C149","v":"8.1.15"},{"$f":"DSCoA!D149","v":"Travel & accomodation"},{"$f":"DSCoA!E149","v":"Y"},null,null,{"$f":"DSCoA!H149","v":"Travel and accommodation expenses incurred for the farm business"}]
[null,{"$f":"DSCoA!B150","v":8.1999999999999993},{"$f":"DSCoA!C150","v":"Milk Selling Expenses"},null,null,null,null,{"$f":"DSCoA!H150","v":"Milk Selling Expenses"}]
[null,null,{"$f":"DSCoA!C151","v":"8.2.1"},{"$f":"DSCoA!D151","v":"Milk levies"},{"$f":"DSCoA!E151","v":"N"},null,null,{"$f":"DSCoA!H151","v":"DA levies"}]
[null,null,{"$f":"DSCoA!C152","v":"8.2.2"},{"$f":"DSCoA!D152","v":"Milk volume charge"},{"$f":"DSCoA!E152","v":"Y"},null,null,{"$f":"DSCoA!H152","v":"Volume charges, stop charges, collection charges"}]
[null,{"$f":"DSCoA!B153","v":8.3000000000000007},{"$f":"DSCoA!C153","v":"Motor Vehicle Expenses"},null,{"$f":"DSCoA!E153","v":"D"},null,null,{"$f":"DSCoA!H153","v":"Motor vehicle expenses"}]
[null,null,{"$f":"DSCoA!C154","v":"8.3.1"},{"$f":"DSCoA!D154","v":"Motor vehicle fuel & oil"},{"$f":"DSCoA!E154","v":"D"},null,null,{"$f":"DSCoA!H154","v":"Fuel and oil not directly related to the conservation or feeding of feed"}]
[null,null,{"$f":"DSCoA!C155","v":"8.3.2"},{"$f":"DSCoA!D155","v":"Motor vehicle R&M servicing"},{"$f":"DSCoA!E155","v":"D"},null,null,{"$f":"DSCoA!H155","v":"Repairs and maintenance on vehicles"}]
[null,null,{"$f":"DSCoA!C156","v":"8.3.3"},{"$f":"DSCoA!D156","v":"Motor vehicle registrations"},{"$f":"DSCoA!E156","v":"D"},null,null,{"$f":"DSCoA!H156","v":"Registrations on farm vehicles"}]
[null,null,{"$f":"DSCoA!C157","v":"8.3.4"},{"$f":"DSCoA!D157","v":"Motor vehicle insurance"},{"$f":"DSCoA!E157","v":"D"},null,null,{"$f":"DSCoA!H157","v":"Vehicle insurance"}]
[null,{"$f":"DSCoA!B158","v":8.4},{"$f":"DSCoA!C158","v":"Miscellaneous Overheads"},null,null,null,null,{"$f":"DSCoA!H158","v":"Miscellaneous Overheads including items such as general freight, industry levies, livestock selling expenses and farm insurance"}]
[null,null,{"$f":"DSCoA!C159","v":"8.4.1"},{"$f":"DSCoA!D159","v":"Cleaning & waste disposal"},{"$f":"DSCoA!E159","v":"Y"},null,null,{"$f":"DSCoA!H159","v":"Charges relating to rubbish removal and pickup"}]
[null,null,{"$f":"DSCoA!C160","v":"8.4.2"},{"$f":"DSCoA!D160","v":"Dog keep"},{"$f":"DSCoA!E160","v":"Y"},null,null,{"$f":"DSCoA!H160","v":"Food, drugs, veterinary attention, collars, chains for working dogs."}]
[null,null,{"$f":"DSCoA!C161","v":"8.4.3"},{"$f":"DSCoA!D161","v":"Farm insurance"},{"$f":"DSCoA!E161","v":"Y"},null,null,{"$f":"DSCoA!H161","v":"Farm insurance package including stock, plant, fodder, buildings, sickness, accident and trauma insurance.  Portion of house insurance as determined by your accountant"}]
[null,null,{"$f":"DSCoA!C162","v":"8.4.4"},{"$f":"DSCoA!D162","v":"General expenses (misc.)"},{"$f":"DSCoA!E162","v":"D"},null,null,{"$f":"DSCoA!H162","v":"General farm expenses that do not fit within another expense code"}]
[null,null,{"$f":"DSCoA!C163","v":"8.4.5"},{"$f":"DSCoA!D163","v":"General freight & cartage"},{"$f":"DSCoA!E163","v":"Y"},null,null,{"$f":"DSCoA!H163","v":"General freight & cartage not including to and from agistment which should be entered under agistment"}]
[null,null,{"$f":"DSCoA!C164","v":"8.4.6"},{"$f":"DSCoA!D164","v":"Hire of plant & equip"},{"$f":"DSCoA!E164","v":"Y"},null,null,{"$f":"DSCoA!H164","v":"Hire of plant and equipment"}]
[null,null,{"$f":"DSCoA!C165","v":"8.4.7"},{"$f":"DSCoA!D165","v":"Industry levies"},{"$f":"DSCoA!E165","v":"D"},null,null,{"$f":"DSCoA!H165","v":"Other industry levies such as UDV and MLA levies but not DA levies"}]
[null,null,{"$f":"DSCoA!C166","v":"8.4.8"},{"$f":"DSCoA!D166","v":"Livestock selling expenses"},{"$f":"DSCoA!E166","v":"D"},null,null,{"$f":"DSCoA!H166","v":"Government levies, yard dues and cartage"}]
[null,null,{"$f":"DSCoA!C167","v":"8.4.9"},{"$f":"DSCoA!D167","v":"Rates"},{"$f":"DSCoA!E167","v":"N"},null,null,{"$f":"DSCoA!H167","v":"Shire rates and charges, domestic water rates where applicable. Note: Irrigation water rates are entered in FEED sub IRRIGATION sub WATER AUTHORITY RATES"}]
[null,null,{"$f":"DSCoA!C168","v":"8.4.10"},{"$f":"DSCoA!D168","v":"Registration & licences"},{"$f":"DSCoA!E168","v":"Y"},null,null,{"$f":"DSCoA!H168","v":"Registration and licences for farm vehicles and machinery"}]
[null,null,{"$f":"DSCoA!C169","v":"8.4.11"},{"$f":"DSCoA!D169","v":"Shelter trees"},{"$f":"DSCoA!E169","v":"Y"},null,null,{"$f":"DSCoA!H169","v":"Trees purchased for shelter on the farm"}]
[]
[{"$f":"DSCoA!A171","v":"9.0"},{"$f":"DSCoA!B171","v":" Finance Costs"},null,null,null,null,null,{"$f":"DSCoA!H171","v":"Expenses relating to financing the operation of the business"}]
[null,{"$f":"DSCoA!B172","v":9.1},{"$f":"DSCoA!C172","v":"Interest"},null,{"$f":"DSCoA!E172","v":"N"},null,null,{"$f":"DSCoA!H172","v":"Note: Interest – separate sub-categories should be set up for each loan or hire purchase.  There should be a corresponding sub-category for the Principal portion for each loan or hire purchase under the CAPITAL EXPENSE category"}]
[null,null,{"$f":"DSCoA!C173","v":"9.1.1"},{"$f":"DSCoA!D173","v":"Interest on loan 1"},{"$f":"DSCoA!E173","v":"N"},null,null,{"$f":"DSCoA!H173","v":"Interest on major additions and/or alterations to the land, buildings, livestock, plant and equipment"}]
[null,null,{"$f":"DSCoA!C174","v":"9.1.2"},{"$f":"DSCoA!D174","v":"Interest on loan 2"},{"$f":"DSCoA!E174","v":"N"},null,null,{"$f":"DSCoA!H174","v":"Interest on major additions and/or alterations to the land, buildings, livestock, plant and equipment"}]
[null,null,{"$f":"DSCoA!C175","v":"9.1.3"},{"$f":"DSCoA!D175","v":"Interest on loan 3"},{"$f":"DSCoA!E175","v":"N"},null,null,{"$f":"DSCoA!H175","v":"Interest on major additions and/or alterations to the land, buildings, livestock, plant and equipment"}]
[null,null,{"$f":"DSCoA!C176","v":"9.1.4"},{"$f":"DSCoA!D176","v":"Interest on loan 4"},{"$f":"DSCoA!E176","v":"N"},null,null,{"$f":"DSCoA!H176","v":"Interest on major additions and/or alterations to the land, buildings, livestock, plant and equipment"}]
[null,null,{"$f":"DSCoA!C177","v":"9.1.5"},{"$f":"DSCoA!D177","v":"Interest on loan 5"},{"$f":"DSCoA!E177","v":"N"},null,null,{"$f":"DSCoA!H177","v":"Interest on major additions and/or alterations to the land, buildings, livestock, plant and equipment"}]
[null,null,{"$f":"DSCoA!C178","v":"9.1.6"},{"$f":"DSCoA!D178","v":"Interest on loan 6"},{"$f":"DSCoA!E178","v":"N"},null,null,{"$f":"DSCoA!H178","v":"Interest on major additions and/or alterations to the land, buildings, livestock, plant and equipment"}]
[null,null,{"$f":"DSCoA!C179","v":"9.1.7"},{"$f":"DSCoA!D179","v":"Interest on loan 7"},{"$f":"DSCoA!E179","v":"N"},null,null,{"$f":"DSCoA!H179","v":"Interest on major additions and/or alterations to the land, buildings, livestock, plant and equipment"}]
[null,null,{"$f":"DSCoA!C180","v":"9.1.8"},{"$f":"DSCoA!D180","v":"Interest on loan 8"},{"$f":"DSCoA!E180","v":"N"},null,null,{"$f":"DSCoA!H180","v":"Interest on major additions and/or alterations to the land, buildings, livestock, plant and equipment"}]
[null,null,{"$f":"DSCoA!C181","v":"9.1.9"},{"$f":"DSCoA!D181","v":"Interest on loan 9"},{"$f":"DSCoA!E181","v":"N"},null,null,{"$f":"DSCoA!H181","v":"Interest on major additions and/or alterations to the land, buildings, livestock, plant and equipment"}]
[null,null,{"$f":"DSCoA!C182","v":"9.1.10"},{"$f":"DSCoA!D182","v":"Interest on loan 10"},{"$f":"DSCoA!E182","v":"N"},null,null,{"$f":"DSCoA!H182","v":"Interest on major additions and/or alterations to the land, buildings, livestock, plant and equipment"}]
[null,null,{"$f":"DSCoA!C183","v":"9.1.11"},{"$f":"DSCoA!D183","v":"Interest on overdraft"},{"$f":"DSCoA!E183","v":"N"},null,null,{"$f":"DSCoA!H183","v":"Interest charged for overdraft on farm operating account, often shown as “debit interest” on bank statement and interest on any other bank accounts but not interest on loans as these are entered in their own category under INTEREST ON LOANS"}]
[null,null,{"$f":"DSCoA!C184","v":"9.1.12"},{"$f":"DSCoA!D184","v":"Other interest expense"},{"$f":"DSCoA!E184","v":"N"},null,null,{"$f":"DSCoA!H184","v":"Include any other interest paid here"}]
[null,{"$f":"DSCoA!B185","v":9.1999999999999993},{"$f":"DSCoA!C185","v":"Leases Expense"},null,{"$f":"DSCoA!E185","v":"D"},null,null,{"$f":"DSCoA!H185","v":"Leases over 12 months on land, water, livestock, plant & equipment"}]
[null,null,{"$f":"DSCoA!C186","v":"9.2.1"},{"$f":"DSCoA!D186","v":"Lease expense plant & equipment 1"},{"$f":"DSCoA!E186","v":"D"},null,null,{"$f":"DSCoA!H186","v":"Leases on plant & equipment"}]
[null,null,{"$f":"DSCoA!C187","v":"9.2.2"},{"$f":"DSCoA!D187","v":"Lease expense plant & equipment 2"},{"$f":"DSCoA!E187","v":"D"},null,null,{"$f":"DSCoA!H187","v":"Leases on plant & equipment"}]
[null,null,{"$f":"DSCoA!C188","v":"9.2.3"},{"$f":"DSCoA!D188","v":"Lease expense plant & equipment 3"},{"$f":"DSCoA!E188","v":"D"},null,null,{"$f":"DSCoA!H188","v":"Leases on plant & equipment"}]
[null,null,{"$f":"DSCoA!C189","v":"9.2.4"},{"$f":"DSCoA!D189","v":"Lease expense plant & equipment 4"},{"$f":"DSCoA!E189","v":"D"},null,null,{"$f":"DSCoA!H189","v":"Leases on plant & equipment"}]
[null,null,{"$f":"DSCoA!C190","v":"9.2.5"},{"$f":"DSCoA!D190","v":"Lease expense livestock 1"},{"$f":"DSCoA!E190","v":"D"},null,null,{"$f":"DSCoA!H190","v":"Leases on livestock"}]
[null,null,{"$f":"DSCoA!C191","v":"9.2.6"},{"$f":"DSCoA!D191","v":"Lease expense livestock 2"},{"$f":"DSCoA!E191","v":"D"},null,null,{"$f":"DSCoA!H191","v":"Leases on livestock"}]
[null,null,{"$f":"DSCoA!C192","v":"9.2.7"},{"$f":"DSCoA!D192","v":"Lease expense livestock 3"},{"$f":"DSCoA!E192","v":"D"},null,null,{"$f":"DSCoA!H192","v":"Leases on livestock"}]
[null,null,{"$f":"DSCoA!C193","v":"9.2.8"},{"$f":"DSCoA!D193","v":"Lease expense livestock 4"},{"$f":"DSCoA!E193","v":"D"},null,null,{"$f":"DSCoA!H193","v":"Leases on livestock"}]
[null,null,{"$f":"DSCoA!C194","v":"9.2.9"},{"$f":"DSCoA!D194","v":"Lease expense land & water 1"},{"$f":"DSCoA!E194","v":"D"},null,null,{"$f":"DSCoA!H194","v":"Leases on land and water"}]
[null,null,{"$f":"DSCoA!C195","v":"9.2.10"},{"$f":"DSCoA!D195","v":"Lease expense land & water 2"},{"$f":"DSCoA!E195","v":"D"},null,null,{"$f":"DSCoA!H195","v":"Leases on land and water"}]
[null,null,{"$f":"DSCoA!C196","v":"9.2.11"},{"$f":"DSCoA!D196","v":"Lease expense land & water 3"},{"$f":"DSCoA!E196","v":"D"},null,null,{"$f":"DSCoA!H196","v":"Leases on land and water"}]
[null,null,{"$f":"DSCoA!C197","v":"9.2.12"},{"$f":"DSCoA!D197","v":"Lease expense land & water 4"},{"$f":"DSCoA!E197","v":"D"},null,null,{"$f":"DSCoA!H197","v":"Leases on land and water"}]
[null,null,{"$f":"DSCoA!C198","v":"9.2.13"},{"$f":"DSCoA!D198","v":"Lease expense land & water 5"},{"$f":"DSCoA!E198","v":"D"},null,null,{"$f":"DSCoA!H198","v":"Leases on land and water"}]
[]
[{"$f":"DSCoA!A200","v":"10.0"},{"$f":"DSCoA!B200","v":" Capital Transactions"},null,null,null,null,null,{"$f":"DSCoA!H200","v":"Capital costs on items that are part of the management and development of the farm business"}]
[null,{"$f":"DSCoA!B201","v":10.1},{"$f":"DSCoA!C201","v":"Livestock Purchases"},null,{"$f":"DSCoA!E201","v":"Y"},{"$f":"DSCoA!F201","v":"Number"},null,{"$f":"DSCoA!H201","v":"Livestock purchases "}]
[null,null,{"$f":"DSCoA!C202","v":"10.1.1"},{"$f":"DSCoA!D202","v":"Milker purchases"},{"$f":"DSCoA!E202","v":"Y"},{"$f":"DSCoA!F202","v":"Number"},null,{"$f":"DSCoA!H202","v":"Cow purchases"}]
[null,null,{"$f":"DSCoA!C203","v":"10.1.2"},{"$f":"DSCoA!D203","v":"Replacement purchases"},{"$f":"DSCoA!E203","v":"Y"},{"$f":"DSCoA!F203","v":"Number"},null,{"$f":"DSCoA!H203","v":"Replacement purchases"}]
[null,null,{"$f":"DSCoA!C204","v":"10.1.3"},{"$f":"DSCoA!D204","v":"Bulls/Other purchases"},{"$f":"DSCoA!E204","v":"Y"},{"$f":"DSCoA!F204","v":"Number"},null,{"$f":"DSCoA!H204","v":"Bulls or other stock purchases"}]
[null,{"$f":"DSCoA!B205","v":10.199999999999999},{"$f":"DSCoA!C205","v":"Other Capital Purchases"}]
[null,null,{"$f":"DSCoA!C206","v":"10.2.1"},{"$f":"DSCoA!D206","v":"Asset Improvements"},{"$f":"DSCoA!E206","v":"Y"},null,null,{"$f":"DSCoA!H206","v":"Improvements: Major additions and/or alterations to the dairy building and dairy plant"}]
[null,null,{"$f":"DSCoA!C207","v":"10.2.2"},{"$f":"DSCoA!D207","v":"Equipment/Machinery purchases"},{"$f":"DSCoA!E207","v":"Y"},null,null,{"$f":"DSCoA!H207","v":"Plant, equipment & vehicles: Tractor, mower, slasher etc. for use on the farm. Milk vat purchase. Farm related vehicles"}]
[null,null,{"$f":"DSCoA!C208","v":"10.2.3"},{"$f":"DSCoA!D208","v":"Asset development"},{"$f":"DSCoA!E208","v":"Y"},null,null,{"$f":"DSCoA!H208","v":"Development: Land forming, recycle systems, pasture establishment and the associated irrigation structures, pumps, motors etc.  Any major farm development or works"}]
[null,null,{"$f":"DSCoA!C209","v":"10.2.4"},{"$f":"DSCoA!D209","v":"Land purchases"},{"$f":"DSCoA!E209","v":"N"},null,null,{"$f":"DSCoA!H209","v":"Land: Land purchased for use by the farm business"}]
[null,null,{"$f":"DSCoA!C210","v":"10.2.5"},{"$f":"DSCoA!D210","v":"Permanent water purchases"},{"$f":"DSCoA!E210","v":"N"},null,null,{"$f":"DSCoA!H210","v":"Water: HRWS, LRWS or bore water purchases"}]
[null,null,{"$f":"DSCoA!C211","v":"10.2.6"},{"$f":"DSCoA!D211","v":"Share purchases"},{"$f":"DSCoA!E211","v":"N"},null,null,{"$f":"DSCoA!H211","v":"Share Equity: Factory share purchases, usually taken directly from milk receipts"}]
[null,null,{"$f":"DSCoA!C212","v":"10.2.7"},{"$f":"DSCoA!D212","v":"Other capital purchase"},{"$f":"DSCoA!E212","v":"Y"},null,null,{"$f":"DSCoA!H212","v":"Other capital purchases that relate to the dairy farm business"}]
[null,null,{"$f":"DSCoA!C213","v":"10.2.8"},{"$f":"DSCoA!D213","v":"Farm management deposits"},{"$f":"DSCoA!E213","v":"N"},null,null,{"$f":"DSCoA!H213","v":"Cash amount despoited into FMDs"}]
[null,null,{"$f":"DSCoA!C214","v":"10.2.9"},{"$f":"DSCoA!D214","v":"Farm management deposits - withdrawals"},{"$f":"DSCoA!E214","v":"N"},null,null,{"$f":"DSCoA!H214","v":"FMDs that become available for use"}]
[null,null,{"$f":"DSCoA!C215","v":"10.2.10"},{"$f":"DSCoA!D215","v":"Capital introduced"},{"$f":"DSCoA!E215","v":"N"},null,null,{"$f":"DSCoA!H215","v":"Capital permanently introduced from non farm business activities"}]
[null,{"$f":"DSCoA!B216","v":10.3},{"$f":"DSCoA!C216","v":"Capital Sales"},null,null,null,null,{"$f":"DSCoA!H216","v":"Sale of items that have a permanent impact on the balance sheet"}]
[null,null,{"$f":"DSCoA!C217","v":"10.3.1"},{"$f":"DSCoA!D217","v":"Land sales"},{"$f":"DSCoA!E217","v":"N"},null,null,{"$f":"DSCoA!H217","v":"Sale of land utilised in the dairy farm business"}]
[null,null,{"$f":"DSCoA!C218","v":"10.3.2"},{"$f":"DSCoA!D218","v":"Permanent water sales"},{"$f":"DSCoA!E218","v":"N"},null,null,{"$f":"DSCoA!H218","v":"Sale of water utilised in the dairy farm business"}]
[null,null,{"$f":"DSCoA!C219","v":"10.3.3"},{"$f":"DSCoA!D219","v":"Equipment /Machinery sales"},{"$f":"DSCoA!E219","v":"Y"},null,null,{"$f":"DSCoA!H219","v":"Sale of plant and equipment used in the dairy farm business"}]
[null,{"$f":"DSCoA!B220","v":10.4},{"$f":"DSCoA!C220","v":"Loan Principal Repayments"},null,{"$f":"DSCoA!E220","v":"N"},null,null,{"$f":"DSCoA!H220","v":"Loan repayments. Note: Loan payments/Hire purchases – if a loan or hire purchase exists on a capital expenditure item below, a separate sub-category should be set up for the principal portion and defined as principal or HP.  e.g. HP DAIRY PLANT or PRINCIPAL LAND.  There should be a corresponding sub-category for the interest portion for each loan or hire purchase under the FINANCE sub INTEREST category.  If a loan, the loan funds received should also similarly be entered in CAPITAL INCOME sub LOANS in a corresponding sub-category name"}]
[null,null,{"$f":"DSCoA!C221","v":"10.4.1"},{"$f":"DSCoA!D221","v":"Principal payments  - loans"},{"$f":"DSCoA!E221","v":"N"},null,null,{"$f":"DSCoA!H221","v":"Principal repayments on loans"}]
[null,null,{"$f":"DSCoA!C222","v":"10.4.2"},{"$f":"DSCoA!D222","v":"Principal payments - HP's or CM's"},{"$f":"DSCoA!E222","v":"N"},null,null,{"$f":"DSCoA!H222","v":"Principal repayments on hire purchase or chattel mortgages"}]
[]
[{"$f":"DSCoA!A224","v":"11.0"},{"$f":"DSCoA!B224","v":" Non Farm Income"},null,null,{"$f":"DSCoA!E224","v":"N"}]
[null,{"$f":"DSCoA!B225","v":11.1},{"$f":"DSCoA!C225","v":"Non Farm Wages"},null,{"$f":"DSCoA!E225","v":"N"},null,null,{"$f":"DSCoA!H225","v":"Wages, salaries earned by family members working off-farm."}]
[null,{"$f":"DSCoA!B226","v":11.2},{"$f":"DSCoA!C226","v":"Non Farm Rent"},null,{"$f":"DSCoA!E226","v":"N"},null,null,{"$f":"DSCoA!H226","v":"Rent received"}]
[null,{"$f":"DSCoA!B227","v":11.3},{"$f":"DSCoA!C227","v":"Funds Contributed"},null,{"$f":"DSCoA!E227","v":"N"},null,null,{"$f":"DSCoA!H227","v":"Funds contributed to the business"}]
[null,{"$f":"DSCoA!B228","v":11.4},{"$f":"DSCoA!C228","v":"Non Farm Dividends"},null,{"$f":"DSCoA!E228","v":"N"},null,null,{"$f":"DSCoA!H228","v":"Dividends from off farm investments"}]
[]
[{"$f":"DSCoA!A230","v":"12.0"},{"$f":"DSCoA!B230","v":" Non Farm Personal Expenses"},null,null,{"$f":"DSCoA!E230","v":"N"},null,null,{"$f":"DSCoA!H230","v":"Personal expenses that are not tax deductible.  "}]
[null,{"$f":"DSCoA!B231","v":12.1},{"$f":"DSCoA!C231","v":"Drawings 1"},null,{"$f":"DSCoA!E231","v":"N"}]
[null,null,{"$f":"DSCoA!C232","v":"12.1.1"},{"$f":"DSCoA!D232","v":"Drawings - living"},{"$f":"DSCoA!E232","v":"N"}]
[null,null,{"$f":"DSCoA!C233","v":"12.1.2"},{"$f":"DSCoA!D233","v":"Drawings - education"},{"$f":"DSCoA!E233","v":"N"}]
[null,null,{"$f":"DSCoA!C234","v":"12.1.3"},{"$f":"DSCoA!D234","v":"Drawings - insurance"},{"$f":"DSCoA!E234","v":"N"},null,null,{"$f":"DSCoA!H234","v":"Including life and income protection insurance"}]
[null,null,{"$f":"DSCoA!C235","v":"12.1.4"},{"$f":"DSCoA!D235","v":"Drawings - medical"},{"$f":"DSCoA!E235","v":"N"}]
[null,null,{"$f":"DSCoA!C236","v":"12.1.5"},{"$f":"DSCoA!D236","v":"Drawings - income tax paid/refunded"},{"$f":"DSCoA!E236","v":"N"}]
[null,null,{"$f":"DSCoA!C237","v":"12.1.6"},{"$f":"DSCoA!D237","v":"Drawings - superannuation contributions (partners)"},{"$f":"DSCoA!E237","v":"N"}]
[null,{"$f":"DSCoA!B238","v":12.2},{"$f":"DSCoA!C238","v":"Drawings 2"},null,{"$f":"DSCoA!E238","v":"N"}]
[null,{"$f":"DSCoA!B239","v":12.3},{"$f":"DSCoA!C239","v":"Drawings 3"},null,{"$f":"DSCoA!E239","v":"N"}]
[null,{"$f":"DSCoA!B240","v":12.4},{"$f":"DSCoA!C240","v":"Other Non Farm Expenses"},null,{"$f":"DSCoA!E240","v":"N"}]
[]
[{"$f":"DSCoA!A242","v":"13.0"},{"$f":"DSCoA!B242","v":" Tax"},null,null,{"$f":"DSCoA!E242","v":"N"}]
[null,{"$f":"DSCoA!B243","v":13.1},{"$f":"DSCoA!C243","v":"GST"},null,{"$f":"DSCoA!E243","v":"N"},null,null,{"$f":"DSCoA!H243","v":"GST amounts"}]
[null,{"$f":"DSCoA!B244","v":13.2},{"$f":"DSCoA!C244","v":"PAYG Instalments"},null,{"$f":"DSCoA!E244","v":"N"},null,null,{"$f":"DSCoA!H244","v":"Pay as you go tax"}]
[null,{"$f":"DSCoA!B245","v":13.3},{"$f":"DSCoA!C245","v":"PAYG Withheld"},null,{"$f":"DSCoA!E245","v":"N"},null,null,{"$f":"DSCoA!H245","v":"Taxheld PAYG for permanent and casual employees"}]
[null,{"$f":"DSCoA!B246","v":13.4},{"$f":"DSCoA!C246","v":"Income Tax"},null,{"$f":"DSCoA!E246","v":"N"},null,null,{"$f":"DSCoA!H246","v":"End of year tax"}]

{"sheet":"Working","index":3,"n_rows":254,"n_cols":15,"rows_kept":254,"cut":false,"hidden":true,"merged":[]}
["Working sheet - please do not alter anything here"]
[]
["Gotos",1,null,null,null,null,null,"Store 1",null,"Store 2",null,"Store 3",null,"Defaults"]
["Goto section…",null,null,null,null,null,null,"Heights","Widths","Heights","Widths","Heights","Widths","Heights","Widths"]
["Income",null,null,null,null,null,"Number",248,249,248,249,248,249,248,11]
["Herd Costs",null,null,null,null,null,null,24,4.29,24,4.29,24,4.29,24,4.29]
["Shed Costs",null,null,null,null,null,null,15.5,5.43,15.5,5.43,15.5,5.43,15.5,5.43]
["Home Grown Feed Costs",null,null,null,null,null,null,15.5,6.57,15.5,6.57,15.5,6.57,15.5,6.57]
["Purchased Feed Costs",null,null,null,null,null,null,15.5,36,15.5,36,15.5,36,15.5,36]
["Employed Labour Costs",null,null,null,null,null,null,15.5,8.43,15.5,8.43,15.5,8.43,15.5,8.43]
["Repairs and Maintenance",null,null,null,null,null,null,28,10.71,28,10.71,28,10.71,28,10.71]
["Other Overheads",null,null,null,null,null,null,15.5,11,15.5,11,15.5,11,15.5,11]
["Finance costs",null,null,null,null,null,null,15.5,149.86000000000001,15.5,149.86000000000001,15.5,149.86000000000001,15.5,149.86000000000001]
["Capital Transactions",null,null,null,null,null,null,15.5,9.43,15.5,9.43,15.5,9.43,15.5,9.43]
["Non Farm Income",null,null,null,null,null,null,28,0,28,0,28,0,28,0]
["Non Farm Operating Expenses",null,null,null,null,null,null,15.5,0,15.5,0,15.5,0,15.5,0]
["Tax",null,null,null,null,null,null,15.5,0,15.5,0,15.5,0,15.5]
[null,null,null,null,null,null,null,15.5,0,15.5,0,15.5,0,15.5]
[null,null,null,null,null,null,null,15,0,15,0,15,0,15]
[null,null,null,null,null,null,null,15.5,0,15.5,0,15.5,0,15.5]
[null,null,null,null,null,null,null,15.5,0,15.5,0,15.5,0,15.5]
[null,null,null,null,null,null,null,15.5,0,15.5,0,15.5,0,15.5]
[null,null,null,null,null,null,null,15.5,0,15.5,0,15.5,0,15.5]
[null,null,null,null,null,null,null,28,0,28,0,28,0,28]
[null,null,null,null,null,null,null,15.5,0,15.5,0,15.5,0,15.5]
[null,null,null,null,null,null,null,15.5,0,15.5,0,15.5,0,15.5]
[null,null,null,null,null,null,null,15.5,0,15.5,0,15.5,0,15.5]
[null,null,null,null,null,null,null,15,0,15,0,15,0,15]
[null,null,null,null,null,null,null,15.5,0,15.5,0,15.5,0,15.5]
[null,null,null,null,null,null,null,15.5,0,15.5,0,15.5,0,15.5]
[null,null,null,null,null,null,null,15.5,0,15.5,0,15.5,0,15.5]
[null,null,null,null,null,null,null,15.5,0,15.5,0,15.5,0,15.5]
[null,null,null,null,null,null,null,15.5,0,15.5,0,15.5,0,15.5]
[null,null,null,null,null,null,null,15.5,0,15.5,0,15.5,0,15.5]
[null,null,null,null,null,null,null,15.5,0,15.5,0,15.5,0,15.5]
[null,null,null,null,null,null,null,15.5,0,15.5,0,15.5,0,15.5]
[null,null,null,null,null,null,null,15.5,0,15.5,0,15.5,0,15.5]
[null,null,null,null,null,null,null,15.5,0,15.5,0,15.5,0,15.5]
[null,null,null,null,null,null,null,15.5,0,15.5,0,15.5,0,15.5]
[null,null,null,null,null,null,null,15.5,0,15.5,0,15.5,0,15.5]
[null,null,null,null,null,null,null,28,0,28,0,28,0,28]
[null,null,null,null,null,null,null,28,0,28,0,28,0,28]
[null,null,null,null,null,null,null,15.5,0,15.5,0,15.5,0,15.5]
[null,null,null,null,null,null,null,15.5,0,15.5,0,15.5,0,15.5]
[null,null,null,null,null,null,null,15.5,0,15.5,0,15.5,0,15.5]
[null,null,null,null,null,null,null,15,0,15,0,15,0,15]
[null,null,null,null,null,null,null,15.5,0,15.5,0,15.5,0,15.5]
[null,null,null,null,null,null,null,28,0,28,0,28,0,28]
[null,null,null,null,null,null,null,28,0,28,0,28,0,28]
[null,null,null,null,null,null,null,15.5,0,15.5,0,15.5,0,15.5]
[null,null,null,null,null,null,null,15.5,0,15.5,0,15.5,0,15.5]
[null,null,null,null,null,null,null,15.5,0,15.5,0,15.5,0,15.5]
[null,null,null,null,null,null,null,15,0,15,0,15,0,15]
[null,null,null,null,null,null,null,15.5,0,15.5,0,15.5,0,15.5]
[null,null,null,null,null,null,null,15.5,0,15.5,0,15.5,0,15.5]
[null,null,null,null,null,null,null,15.5,0,15.5,0,15.5,0,15.5]
[null,null,null,null,null,null,null,15.5,0,15.5,0,15.5,0,15.5]
[null,null,null,null,null,null,null,15.5,0,15.5,0,15.5,0,15.5]
[null,null,null,null,null,null,null,15.5,0,15.5,0,15.5,0,15.5]
[null,null,null,null,null,null,null,15.5,0,15.5,0,15.5,0,15.5]
[null,null,null,null,null,null,null,15.5,0,15.5,0,15.5,0,15.5]
[null,null,null,null,null,null,null,15.5,0,15.5,0,15.5,0,15.5]
[null,null,null,null,null,null,null,15.5,0,15.5,0,15.5,0,15.5]
[null,null,null,null,null,null,null,15.5,0,15.5,0,15.5,0,15.5]
[null,null,null,null,null,null,null,28,0,28,0,28,0,28]
[null,null,null,null,null,null,null,28,0,28,0,28,0,28]
[null,null,null,null,null,null,null,15.5,0,15.5,0,15.5,0,15.5]
[null,null,null,null,null,null,null,15,0,15,0,15,0,15]
[null,null,null,null,null,null,null,15.5,0,15.5,0,15.5,0,15.5]
[null,null,null,null,null,null,null,15.5,0,15.5,0,15.5,0,15.5]
[null,null,null,null,null,null,null,15.5,0,15.5,0,15.5,0,15.5]
[null,null,null,null,null,null,null,15.5,0,15.5,0,15.5,0,15.5]
[null,null,null,null,null,null,null,15.5,0,15.5,0,15.5,0,15.5]
[null,null,null,null,null,null,null,28,0,28,0,28,0,28]
[null,null,null,null,null,null,null,15.5,0,15.5,0,15.5,0,15.5]
[null,null,null,null,null,null,null,28,0,28,0,28,0,28]
[null,null,null,null,null,null,null,28,0,28,0,28,0,28]
[null,null,null,null,null,null,null,15.5,0,15.5,0,15.5,0,15.5]
[null,null,null,null,null,null,null,15,0,15,0,15,0,15]
[null,null,null,null,null,null,null,15.5,0,15.5,0,15.5,0,15.5]
[null,null,null,null,null,null,null,15.5,0,15.5,0,15.5,0,15.5]
[null,null,null,null,null,null,null,15.5,0,15.5,0,15.5,0,15.5]
[null,null,null,null,null,null,null,15.5,0,15.5,0,15.5,0,15.5]
[null,null,null,null,null,null,null,15.5,0,15.5,0,15.5,0,15.5]
[null,null,null,null,null,null,null,15.5,0,15.5,0,15.5,0,15.5]
[null,null,null,null,null,null,null,15.5,0,15.5,0,15.5,0,15.5]
[null,null,null,null,null,null,null,15.5,0,15.5,0,15.5,0,15.5]
[null,null,null,null,null,null,null,15.5,0,15.5,0,15.5,0,15.5]
[null,null,null,null,null,null,null,15.5,0,15.5,0,15.5,0,15.5]
[null,null,null,null,null,null,null,15.5,0,15.5,0,15.5,0,15.5]
[null,null,null,null,null,null,null,15.5,0,15.5,0,15.5,0,15.5]
[null,null,null,null,null,null,null,15.5,0,15.5,0,15.5,0,15.5]
[null,null,null,null,null,null,null,15.5,0,15.5,0,15.5,0,15.5]
[null,null,null,null,null,null,null,15.5,0,15.5,0,15.5,0,15.5]
[null,null,null,null,null,null,null,15.5,0,15.5,0,15.5,0,15.5]
[null,null,null,null,null,null,null,15.5,0,15.5,0,15.5,0,15.5]
[null,null,null,null,null,null,null,15.5,0,15.5,0,15.5,0,15.5]
[null,null,null,null,null,null,null,15.5,0,15.5,0,15.5,0,15.5]
[null,null,null,null,null,null,null,15.5,0,15.5,0,15.5,0,15.5]
[null,null,null,null,null,null,null,15.5,0,15.5,0,15.5,0,15.5]
[null,null,null,null,null,null,null,15.5,0,15.5,0,15.5,0,15.5]
[null,null,null,null,null,null,null,15.5,0,15.5,0,15.5,0,15.5]
[null,null,null,null,null,null,null,15.5,0,15.5,0,15.5,0,15.5]
[null,null,null,null,null,null,null,15.5,0,15.5,0,15.5,0,15.5]
[null,null,null,null,null,null,null,15.5,0,15.5,0,15.5,0,15.5]
[null,null,null,null,null,null,null,15.5,0,15.5,0,15.5,0,15.5]
[null,null,null,null,null,null,null,15.5,0,15.5,0,15.5,0,15.5]
[null,null,null,null,null,null,null,15.5,0,15.5,0,15.5,0,15.5]
[null,null,null,null,null,null,null,15.5,0,15.5,0,15.5,0,15.5]
[null,null,null,null,null,null,null,15.5,0,15.5,0,15.5,0,15.5]
[null,null,null,null,null,null,null,15.5,0,15.5,0,15.5,0,15.5]
[null,null,null,null,null,null,null,15.5,0,15.5,0,15.5,0,15.5]
[null,null,null,null,null,null,null,15.5,0,15.5,0,15.5,0,15.5]
[null,null,null,null,null,null,null,15,0,15,0,15,0,15]
[null,null,null,null,null,null,null,28,0,28,0,28,0,28]
[null,null,null,null,null,null,null,28,0,28,0,28,0,28]
[null,null,null,null,null,null,null,28,0,28,0,28,0,28]
[null,null,null,null,null,null,null,15.5,0,15.5,0,15.5,0,15.5]
[null,null,null,null,null,null,null,15,0,15,0,15,0,15]
[null,null,null,null,null,null,null,15.5,0,15.5,0,15.5,0,15.5]
[null,null,null,null,null,null,null,15.5,0,15.5,0,15.5,0,15.5]
[null,null,null,null,null,null,null,15.5,0,15.5,0,15.5,0,15.5]
[null,null,null,null,null,null,null,15.5,0,15.5,0,15.5,0,15.5]
[null,null,null,null,null,null,null,15.5,0,15.5,0,15.5,0,15.5]
[null,null,null,null,null,null,null,15.5,0,15.5,0,15.5,0,15.5]
[null,null,null,null,null,null,null,15.5,0,15.5,0,15.5,0,15.5]
[null,null,null,null,null,null,null,15.5,0,15.5,0,15.5,0,15.5]
[null,null,null,null,null,null,null,15.5,0,15.5,0,15.5,0,15.5]
[null,null,null,null,null,null,null,15.5,0,15.5,0,15.5,0,15.5]
[null,null,null,null,null,null,null,15.5,0,15.5,0,15.5,0,15.5]
[null,null,null,null,null,null,null,15.5,0,15.5,0,15.5,0,15.5]
[null,null,null,null,null,null,null,28,0,28,0,28,0,28]
[null,null,null,null,null,null,null,15.5,0,15.5,0,15.5,0,15.5]
[null,null,null,null,null,null,null,15.5,0,15.5,0,15.5,0,15.5]
[null,null,null,null,null,null,null,15.5,0,15.5,0,15.5,0,15.5]
[null,null,null,null,null,null,null,15.5,0,15.5,0,15.5,0,15.5]
[null,null,null,null,null,null,null,15.5,0,15.5,0,15.5,0,15.5]
[null,null,null,null,null,null,null,15.5,0,15.5,0,15.5,0,15.5]
[null,null,null,null,null,null,null,15.5,0,15.5,0,15.5,0,15.5]
[null,null,null,null,null,null,null,15.5,0,15.5,0,15.5,0,15.5]
[null,null,null,null,null,null,null,15.5,0,15.5,0,15.5,0,15.5]
[null,null,null,null,null,null,null,15.5,0,15.5,0,15.5,0,15.5]
[null,null,null,null,null,null,null,15.5,0,15.5,0,15.5,0,15.5]
[null,null,null,null,null,null,null,15.5,0,15.5,0,15.5,0,15.5]
[null,null,null,null,null,null,null,15.5,0,15.5,0,15.5,0,15.5]
[null,null,null,null,null,null,null,15.5,0,15.5,0,15.5,0,15.5]
[null,null,null,null,null,null,null,15.5,0,15.5,0,15.5,0,15.5]
[null,null,null,null,null,null,null,15.5,0,15.5,0,15.5,0,15.5]
[null,null,null,null,null,null,null,15.5,0,15.5,0,15.5,0,15.5]
[null,null,null,null,null,null,null,15.5,0,15.5,0,15.5,0,15.5]
[null,null,null,null,null,null,null,15.5,0,15.5,0,15.5,0,15.5]
[null,null,null,null,null,null,null,15.5,0,15.5,0,15.5,0,15.5]
[null,null,null,null,null,null,null,15.5,0,15.5,0,15.5,0,15.5]
[null,null,null,null,null,null,null,15.5,0,15.5,0,15.5,0,15.5]
[null,null,null,null,null,null,null,15.5,0,15.5,0,15.5,0,15.5]
[null,null,null,null,null,null,null,15.5,0,15.5,0,15.5,0,15.5]
[null,null,null,null,null,null,null,15.5,0,15.5,0,15.5,0,15.5]
[null,null,null,null,null,null,null,15.5,0,15.5,0,15.5,0,15.5]
[null,null,null,null,null,null,null,15.5,0,15.5,0,15.5,0,15.5]
[null,null,null,null,null,null,null,15.5,0,15.5,0,15.5,0,15.5]
[null,null,null,null,null,null,null,15.5,0,15.5,0,15.5,0,15.5]
[null,null,null,null,null,null,null,15.5,0,15.5,0,15.5,0,15.5]
[null,null,null,null,null,null,null,15.5,0,15.5,0,15.5,0,15.5]
[null,null,null,null,null,null,null,15.5,0,15.5,0,15.5,0,15.5]
[null,null,null,null,null,null,null,15.5,0,15.5,0,15.5,0,15.5]
[null,null,null,null,null,null,null,28,0,28,0,28,0,28]
[null,null,null,null,null,null,null,15.5,0,15.5,0,15.5,0,15.5]
[null,null,null,null,null,null,null,28,0,28,0,28,0,28]
[null,null,null,null,null,null,null,15.5,0,15.5,0,15.5,0,15.5]
[null,null,null,null,null,null,null,15.5,0,15.5,0,15.5,0,15.5]
[null,null,null,null,null,null,null,15.5,0,15.5,0,15.5,0,15.5]
[null,null,null,null,null,null,null,15.5,0,15.5,0,15.5,0,15.5]
[null,null,null,null,null,null,null,15.5,0,15.5,0,15.5,0,15.5]
[null,null,null,null,null,null,null,28,0,28,0,28,0,28]
[null,null,null,null,null,null,null,15.5,0,15.5,0,15.5,0,15.5]
[null,null,null,null,null,null,null,15.5,0,15.5,0,15.5,0,15.5]
[null,null,null,null,null,null,null,28,0,28,0,28,0,28]
[null,null,null,null,null,null,null,15.5,0,15.5,0,15.5,0,15.5]
[null,null,null,null,null,null,null,15.5,0,15.5,0,15.5,0,15.5]
[null,null,null,null,null,null,null,15.5,0,15.5,0,15.5,0,15.5]
[null,null,null,null,null,null,null,15.5,0,15.5,0,15.5,0,15.5]
[null,null,null,null,null,null,null,15,0,15,0,15,0,15]
[null,null,null,null,null,null,null,15.5,0,15.5,0,15.5,0,15.5]
[null,null,null,null,null,null,null,15.5,0,15.5,0,15.5,0,15.5]
[null,null,null,null,null,null,null,15.5,0,15.5,0,15.5,0,15.5]
[null,null,null,null,null,null,null,15.5,0,15.5,0,15.5,0,15.5]
[null,null,null,null,null,null,null,15.5,0,15.5,0,15.5,0,15.5]
[null,null,null,null,null,null,null,28,0,28,0,28,0,28]
[null,null,null,null,null,null,null,15.5,0,15.5,0,15.5,0,15.5]
[null,null,null,null,null,null,null,15.5,0,15.5,0,15.5,0,15.5]
[null,null,null,null,null,null,null,15.5,0,15.5,0,15.5,0,15.5]
[null,null,null,null,null,null,null,15.5,0,15.5,0,15.5,0,15.5]
[null,null,null,null,null,null,null,15.5,0,15.5,0,15.5,0,15.5]
[null,null,null,null,null,null,null,15.5,0,15.5,0,15.5,0,15.5]
[null,null,null,null,null,null,null,15.5,0,15.5,0,15.5,0,15.5]
[null,null,null,null,null,null,null,15.5,0,15.5,0,15.5,0,15.5]
[null,null,null,null,null,null,null,15.5,0,15.5,0,15.5,0,15.5]
[null,null,null,null,null,null,null,15.5,0,15.5,0,15.5,0,15.5]
[null,null,null,null,null,null,null,15.5,0,15.5,0,15.5,0,15.5]
[null,null,null,null,null,null,null,15.5,0,15.5,0,15.5,0,15.5]
[null,null,null,null,null,null,null,15.5,0,15.5,0,15.5,0,15.5]
[null,null,null,null,null,null,null,15.5,0,15.5,0,15.5,0,15.5]
[null,null,null,null,null,null,null,15.5,0,15.5,0,15.5,0,15.5]
[null,null,null,null,null,null,null,15.5,0,15.5,0,15.5,0,15.5]
[null,null,null,null,null,null,null,15.5,0,15.5,0,15.5,0,15.5]
[null,null,null,null,null,null,null,15.5,0,15.5,0,15.5,0,15.5]
[null,null,null,null,null,null,null,15.5,0,15.5,0,15.5,0,15.5]
[null,null,null,null,null,null,null,15.5,0,15.5,0,15.5,0,15.5]
[null,null,null,null,null,null,null,15.5,0,15.5,0,15.5,0,15.5]
[null,null,null,null,null,null,null,15.5,0,15.5,0,15.5,0,15.5]
[null,null,null,null,null,null,null,15.5,0,15.5,0,15.5,0,15.5]
[null,null,null,null,null,null,null,15.5,8.43,15.5,8.43,15.5,8.43,15.5]
[null,null,null,null,null,null,null,15.5,8.43,15.5,8.43,15.5,8.43,15.5]
[null,null,null,null,null,null,null,15.5,8.43,15.5,8.43,15.5,8.43,15.5]
[null,null,null,null,null,null,null,15.5,8.43,15.5,8.43,15.5,8.43,15.5]
[null,null,null,null,null,null,null,15.5,8.43,15.5,8.43,15.5,8.43,15.5]
[null,null,null,null,null,null,null,15.5,8.43,15.5,8.43,15.5,8.43,15.5]
[null,null,null,null,null,null,null,15.5,8.43,15.5,8.43,15.5,8.43,15.5]
[null,null,null,null,null,null,null,15.5,8.43,15.5,8.43,15.5,8.43,15.5]
[null,null,null,null,null,null,null,15.5,8.43,15.5,8.43,15.5,8.43,15.5]
[null,null,null,null,null,null,null,15.5,8.43,15.5,8.43,15.5,8.43,15.5]
[null,null,null,null,null,null,null,15.5,8.43,15.5,8.43,15.5,8.43,15.5]
[null,null,null,null,null,null,null,15.5,8.43,15.5,8.43,15.5,8.43,15.5]
[null,null,null,null,null,null,null,15.5,8.43,15.5,8.43,15.5,8.43,15.5]
[null,null,null,null,null,null,null,42,8.43,42,8.43,42,8.43,42]
[null,null,null,null,null,null,null,15.5,8.43,15.5,8.43,15.5,8.43,15.5]
[null,null,null,null,null,null,null,15.5,8.43,15.5,8.43,15.5,8.43,15.5]
[null,null,null,null,null,null,null,15.5,8.43,15.5,8.43,15.5,8.43,15.5]
[null,null,null,null,null,null,null,15.5,8.43,15.5,8.43,15.5,8.43,15.5]
[null,null,null,null,null,null,null,15.5,8.43,15.5,8.43,15.5,8.43,15.5]
[null,null,null,null,null,null,null,15.5,8.43,15.5,8.43,15.5,8.43,15.5]
[null,null,null,null,null,null,null,15.5,8.43,15.5,8.43,15.5,8.43,15.5]
[null,null,null,null,null,null,null,15.5,8.43,15.5,8.43,15.5,8.43,15.5]
[null,null,null,null,null,null,null,15.5,8.43,15.5,8.43,15.5,8.43,15.5]
[null,null,null,null,null,null,null,15.5,8.43,15.5,8.43,15.5,8.43,15.5]
[null,null,null,null,null,null,null,15.5,8.43,15.5,8.43,15.5,8.43,15.5]
[null,null,null,null,null,null,null,15.5,8.43,15.5,8.43,15.5,8.43,15.5]
[null,null,null,null,null,null,null,15.5,8.43,15.5,8.43,15.5,8.43,15.5]
[null,null,null,null,null,null,null,15.5,8.43,15.5,8.43,15.5,8.43,15.5]
[null,null,null,null,null,null,null,15.5,8.43,15.5,8.43,15.5,8.43,15.5]
[null,null,null,null,null,null,null,15.5,8.43,15.5,8.43,15.5,8.43,15.5]
[null,null,null,null,null,null,null,15.5,8.43,15.5,8.43,15.5,8.43,15.5]
[null,null,null,null,null,null,null,15.5,8.43,15.5,8.43,15.5,8.43,15.5]
[null,null,null,null,null,null,null,15.5,8.43,15.5,8.43,15.5,8.43,15.5]
[null,null,null,null,null,null,null,15.5,8.43,15.5,8.43,15.5,8.43,15.5]
[null,null,null,null,null,null,null,15.5,8.43,15.5,8.43,15.5,8.43,15.5]
[null,null,null,null,null,null,null,15.5,8.43,15.5,8.43,15.5,8.43,15.5]
[null,null,null,null,null,null,null,15.5,8.43,15.5,8.43,15.5,8.43,15.5]
[null,null,null,null,null,null,null,15.5,8.43,15.5,8.43,15.5,8.43,15.5]
[null,null,null,null,null,null,null,15.5,8.43,15.5,8.43,15.5,8.43,15.5]
[null,null,null,null,null,null,null,15.5,8.43,15.5,8.43,15.5,8.43,15.5]
[null,null,null,null,null,null,null,15.5,8.43,15.5,8.43,15.5,8.43,15.5]
[null,null,null,null,null,null,null,15.5,8.43,15.5,8.43,15.5,8.43,15.5]
[null,null,null,null,null,null,null,null,8.43,null,8.43,null,8.43]